Workbook

Sheet 000000 (hidden)

Sheet 短期投资汇总 (hidden)
A2: 短期投资清查评估汇总表
A4: =#REF! -> 
A6: =#REF! ->  | F6: 金额单位：人民币元
A7: 编号 | B7: 科目名称 | C7: 帐面价值 | D7: 调整后帐面值 | E7: 评估价值 | F7: 增值额 | G7: 增值率%
A8: 1 | B8: 短期投资—股票投资 | C8: =#REF! ->  | D8: =#REF! ->  | E8: =#REF! ->  | F8: =E8-D8 ->  | G8: =IF(C8=0," ",IF(F8/C8=0," ",F8/C8)) -> 
A9: 2 | B9: 短期投资—债券投资 | C9: =#REF! ->  | D9: =#REF! ->  | E9: =#REF! ->  | F9: =E9-D9 ->  | G9: =IF(C9=0," ",IF(F9/C9=0," ",F9/C9)) -> 
A19: 3 | B19: 短期投资合计 | C19: =SUM(C8:C18) ->  | D19: =SUM(D8:D18) ->  | E19: =SUM(E8:E18) ->  | F19: =SUM(F8:F18) ->  | G19: =IF(C19=0," ",IF(F19/C19=0," ",F19/C19)) -> 
A20: 4 | B20: 减：短期投资跌价准备
A21: 5 | B21: 短期投资净额 | C21: =C19-C20 ->  | D21: =D19-D20 ->  | E21: =E19-E20 ->  | F21: =E21-D21 ->  | G21: =IF(C21=0," ",IF(F21/C21=0," ",F21/C21)) -> 
A22: =#REF! ->  | G22: =#REF! -> 
A23: =#REF! -> 

Sheet 存货汇总 (hidden)
A2: 存 货 清 查 评 估 汇 总 表
A4: =#REF! -> 
A6: =#REF! ->  | F6: 金额单位：元
A7: 编号 | B7: 科目名称 | C7: 帐 面 价 值 | D7: 调整后帐面值 | E7: 评估价值 | F7: 增值额 | G7: 增值率%
A8: 1 | B8: 原材料 | C8: =#REF! ->  | D8: =#REF! ->  | E8: =#REF! ->  | F8: =E8-D8 ->  | G8: =IF(D8=0," ",IF(F8/D8=0," ",F8/D8)) -> 
A9: 2 | B9: 材料采购 | C9: =#REF! ->  | D9: =#REF! ->  | E9: =#REF! ->  | F9: =E9-D9 ->  | G9: =IF(D9=0," ",IF(F9/D9=0," ",F9/D9)) -> 
A10: 3 | B10: 材料成本差异 | C10: =#REF! ->  | D10: =#REF! ->  | E10: =#REF! -> 
A11: 4 | B11: 包装物 | C11: =#REF! ->  | D11: =#REF! ->  | E11: =#REF! -> 
A12: 5 | B12: 在库低值易耗品 | C12: =#REF! ->  | D12: =#REF! ->  | E12: =#REF! -> 
A13: 6 | B13: 在用低值易耗品 | C13: =#REF! ->  | D13: =#REF! ->  | E13: =#REF! -> 
A14: 7 | B14: 半成品 | C14: =#REF! ->  | D14: =#REF! ->  | E14: =#REF! -> 
A15: 8 | B15: 产成品 | C15: =#REF! ->  | D15: =#REF! ->  | E15: =#REF! -> 
A16: 9 | B16: 库存商品 | C16: =#REF! ->  | D16: =#REF! ->  | E16: =#REF! -> 
A17: 10 | B17: 工程施工 | C17: =#REF! ->  | D17: =#REF! ->  | E17: =#REF! -> 
A18: 11 | B18: 分期收款发出商品 | C18: =#REF! ->  | D18: =#REF! ->  | E18: =#REF! -> 
A19: 12 | B19: 委托加工材料 | C19: =#REF! ->  | D19: =#REF! ->  | E19: =#REF! -> 
A20: 13 | B20: 委托代销商品 | C20: =#REF! ->  | D20: =#REF! ->  | E20: =#REF! -> 
A21: 14 | B21: 受托代销商品 | C21: =#REF! ->  | D21: =#REF! ->  | E21: =#REF! -> 
F22: 0
A23: 15 | B23: 存货合计 | C23: =SUM(C8:C22) ->  | D23: =SUM(D8:D22) ->  | E23: =SUM(E8:E22) ->  | F23: =SUM(F8:F22) -> 
A24: 16 | B24: 减：存货跌价准备 | F24: =E24-D24 -> 0
A25: 17 | B25: 存货净额 | C25: =C23-C24 ->  | D25: =D23-D24 ->  | E25: =E23-E24 ->  | F25: =F23-F24 -> 
A26: =#REF! ->  | G26: =#REF! -> 
A27: =#REF! -> 

Sheet 长期投资汇总 (hidden)
A2: 长期投资清查评估汇总表
A4: =#REF! -> 
A6: =#REF! ->  | F6: 金额单位：元
A7: 编号 | B7: 科目名称 | C7: 帐 面 价 值 | D7: 调整后帐面值 | E7: 评估价值 | F7: 增值额 | G7: 增值率%
A8: 1 | B8: 长期投资—股票投资 | C8: =#REF! ->  | D8: =#REF! ->  | E8: =#REF! ->  | F8: =E8-D8 ->  | G8: =IF(D8=0," ",IF(F8/D8=0," ",F8/D8)) -> 
A9: 2 | B9: 长期投资—债券投资 | C9: =#REF! ->  | D9: =#REF! ->  | E9: =#REF! ->  | F9: =E9-D9 ->  | G9: =IF(D9=0," ",IF(F9/D9=0," ",F9/D9)) -> 
A10: 3 | B10: 长期投资—其他投资 | C10: =#REF! ->  | D10: =#REF! ->  | E10: =#REF! -> 
F11: 0
F12: 0
F13: 0
F14: 0
F15: 0
F16: 0
F17: 0
F18: 0
B19: 长期投资合计 | C19: =SUM(C8:C18) ->  | D19: =SUM(D8:D18) ->  | E19: =SUM(E8:E18) ->  | F19: =SUM(F8:F18) -> 
B20: 减：长期投资减值准备
B21: 长期投资净值 | C21: =C19-C20 ->  | D21: =D19-D20 ->  | E21: =E19-E20 ->  | F21: =F19-F20 -> 
A22: =#REF! ->  | G22: =#REF! -> 
A23: =#REF! -> 

Sheet 机器设备
A1: 固定资产——机器设备评估明细表
A2: =#REF! -> 
Q4: 表4-6-4
A5: =#REF! ->  | Q5: 金额单位：人民币元
A6: 序号 | B6: 设备编号 | C6: 设备名称 | D6: 规格型号 | E6: 生产厂家 | F6: 计量单位 | G6: 数量 | H6: 购置日期 | I6: 启用日期 | J6: 帐 面 价 值 | L6: 评 估 价 值 | O6: 增值率% | Q6: 备注
J7: 原值 | K7: 净值 | L7: 原值 | M7: 成新率 | N7: 净值 | P7: 备注
A8: 1 | C8: 湖北阳新娲石建材工地： | O8: =IF(K8=0,,(N8-K8)/K8) -> 0.0%
A9: 2 | C9: 焊机 | F9: 台 | G9: 35 | H9: 2012-05-31 | J9: 97,300.00 | K9: 19,460.00 | L9: 42,000.00 | M9: 50% | N9: =L9*M9 -> 21,000.00 | O9: 7.9%
A10: 3 | C10: 卷扬机 | D10: 3T | F10: 台 | G10: 1 | H10: 2012-05-31 | J10: 5,800.00 | K10: 1,160.00 | L10: 5,800.00 | M10: 50% | N10: =L10*M10 -> 2,900.00 | O10: 150.0%
A11: 4 | C11: 卷扬机 | D11: 5T | F11: 台 | G11: 1 | H11: 2012-05-31 | J11: 12,500.00 | K11: 2,500.00 | L11: 12,800.00 | M11: 50% | N11: 6,400.00 | O11: 156.0%
A12: 5 | C12: 手拉葫芦 | D12: 10T | F12: 台 | G12: 2 | H12: 2012-05-31 | J12: 3,600.00 | K12: 720.00 | L12: 9,998.00 | M12: 50% | N12: 4,999.00 | O12: 594.3%
A13: 6 | C13: 手拉葫芦 | D13: 5T | F13: 台 | G13: 17 | H13: 2012-05-31 | J13: 93,500.00 | K13: 18,700.00 | L13: 18,666.00 | M13: 50% | N13: 9,333.00 | O13: -50.1%
A14: 7 | C14: 手拉葫芦 | D14: 3T | F14: 台 | G14: 17 | H14: 2012-05-31 | J14: 25,500.00 | K14: 5,100.00 | L14: 10,404.00 | M14: 50% | N14: 5,202.00 | O14: 2.0%
A15: 8 | C15: 手拉葫芦 | D15: 2T | F15: 台 | G15: 3 | H15: 2012-05-31 | J15: 4,500.00 | K15: 900.00 | L15: 3,204.00 | M15: 50% | N15: 1,602.00 | O15: 78.0%
A16: 9 | C16: 电锤 | F16: 台 | G16: 1 | H16: 2012-05-31 | J16: 3,200.00 | K16: 640.00 | L16: 2,200.00 | M16: 50% | N16: 1,100.00 | O16: 71.9%
A17: 10 | C17: 液压千斤顶 | D17: 50T | F17: 台 | G17: 2 | H17: 2012-05-31 | K17: 0 | L17: 6,800.00 | M17: 50% | N17: 3,400.00 | O17: 0.0%
A18: 11 | C18: 液压千斤顶 | D18: 32T | F18: 台 | G18: 3 | H18: 2012-05-31 | K18: 0 | L18: 7,800.00 | M18: 50% | N18: 3,900.00 | O18: 0.0%
A19: 12 | C19: 机械千斤顶 | D19: 32T | F19: 台 | G19: 2 | H19: 2012-05-31 | K19: 0 | L19: 3,200.00 | M19: 50% | N19: 1,600.00 | O19: 0.0%
A20: 13 | C20: 机械千斤顶 | D20: 16T | F20: 台 | G20: 3 | H20: 2012-05-31 | K20: 0 | L20: 3,600.00 | M20: 50% | N20: 1,800.00 | O20: 0.0%
A21: 14 | C21: 框式水平尺 | F21: 台 | G21: 2 | H21: 2012-05-31 | K21: 0 | L21: 440.00 | M21: 50% | N21: 220.00 | O21: 0.0%
A22: 15 | C22: 配电柜 | F22: 个 | G22: 3 | H22: 2012-05-31 | K22: 0 | L22: 6,900.00 | M22: 50% | N22: 3,450.00 | O22: 0.0%
A23: 16 | C23: 配电箱 | F23: 个 | G23: 4 | H23: 2012-05-31 | K23: 0 | L23: 8,000.00 | M23: 50% | N23: 4,000.00 | O23: 0.0%
A24: 17 | C24: 电锤 | F24: 台 | G24: 3 | H24: 2012-05-31 | J24: 9,600.00 | K24: 1,920.00 | L24: 6,600.00 | M24: 50% | N24: 3,300.00 | O24: 71.9%
A25: 18 | C25: 机械千斤顶 | D25: 32T、60T | F25: 台 | G25: 4 | H25: 2012-05-31 | K25: 0 | L25: 10,000.00 | M25: 50% | N25: 5,000.00 | O25: 0.0%
A26: 19 | C26: 总公司： | K26: 0 | N26: 0.00 | O26: 0.0%
A27: 20 | C27: 龙门吊 | D27: 10T | F27: 台 | G27: 14 | H27: 2009-01-31 | J27: 1,379,000.00 | K27: 275,800.00 | L27: 1,120,000.00 | M27: 30% | N27: 336,000.00 | O27: 21.8%
A28: 21 | C28: 龙门吊 | D28: 5T | F28: 台 | G28: 2 | H28: 2009-01-31 | J28: 111,191.86 | K28: 22,238.37 | L28: 92,000.00 | M28: 30% | N28: 27,600.00 | O28: 24.1%
A29: 22 | C29: 交流电焊机 | F29: 台 | G29: 129 | H29: 2009-01-31 | J29: 273,480.00 | K29: 54,696.00 | L29: 276,060.00 | M29: 30% | N29: 82,818.00 | O29: 51.4%
A30: 23 | C30: 直流电焊机 | D30: 630 | F30: 台 | G30: 15 | H30: 2009-01-31 | J30: 114,000.00 | K30: 22,800.00 | L30: 38,250.00 | M30: 30% | N30: 11,475.00 | O30: -49.7%
A31: 24 | C31: 直流电焊机 | D31: 小 | F31: 台 | G31: 5 | H31: 2009-05-31 | J31: 32,000.00 | K31: 6,400.00 | L31: 12,750.00 | M31: 30% | N31: 3,825.00 | O31: -40.2%
A32: 25 | C32: 二保电焊机 | F32: 台 | G32: 8 | H32: 2009-05-31 | J32: 24,000.00 | K32: 4,800.00 | L32: 32,000.00 | M32: 30% | N32: 9,600.00 | O32: 100.0%
A33: 26 | C33: 埋弧电焊机 | F33: 台 | G33: 5 | H33: 2009-05-31 | J33: 165,000.00 | K33: 33,000.00 | L33: 175,720.00 | M33: 30% | N33: 52,716.00 | O33: 59.7%
A34: 27 | C34: 等离子焊机 | F34: 台 | G34: 1 | H34: 2009-10-31 | K34: 0 | L34: 5,500.00 | M34: 30% | N34: 1,650.00 | O34: 0.0%
A35: 28 | C35: 卷板机 | D35: 15-25*2000 | F35: 台 | G35: 20 | H35: 2009-10-31 | J35: 1,700,000.00 | K35: 340,000.00 | L35: 1,714,000.00 | M35: 20% | N35: 342,800.00 | O35: 0.8%
A36: 29 | C36: 卷板机 | D36: 10*1800 | F36: 台 | G36: 1 | H36: 2009-10-31 | J36: 57,200.00 | K36: 11,440.00 | L36: 13,000.00 | M36: 20% | N36: 2,600.00 | O36: -77.3%
A37: 30 | C37: 卷扬机 | D37: 5T | F37: 台 | G37: 12 | H37: 2009-10-31 | J37: 183,600.00 | K37: 36,720.00 | L37: 153,600.00 | M37: 20% | N37: 30,720.00 | O37: -16.3%
A38: 31 | C38: 卷扬机 | D38: 1-3T | F38: 台 | G38: 22 | H38: 2009-10-31 | J38: 127,600.00 | K38: 25,520.00 | L38: 127,600.00 | M38: 20% | N38: 25,520.00 | O38: 0.0%
A39: 32 | C39: 经纬仪 | F39: 台 | G39: 7 | H39: 2009-10-31 | J39: 63,000.00 | K39: 12,600.00 | L39: 42,000.00 | M39: 20% | N39: 8,400.00 | O39: -33.3%
A40: 33 | C40: 水准仪 | F40: 台 | G40: 17 | H40: 2009-10-31 | J40: 24,650.00 | K40: 4,930.00 | L40: 17,000.00 | M40: 20% | N40: 3,400.00 | O40: -31.0%
A41: 34 | C41: 探伤仪 | F41: 台 | G41: 3 | H41: 2010-01-31 | J41: 22,500.00 | K41: 4,500.00 | L41: 25,500.00 | M41: 30% | N41: 7,650.00 | O41: 70.0%
A42: 35 | C42: 空压机 | D42: 63带杀罐，储气罐 | F42: 台 | G42: 4 | H42: 2010-01-31 | J42: 23,200.00 | K42: 4,640.00 | L42: 20,000.00 | M42: 30% | N42: 6,000.00 | O42: 29.3%
A43: 36 | C43: 空压机 | F43: 台 | G43: 15 | H43: 2010-01-31 | J43: 31,500.00 | K43: 6,300.00 | L43: 30,000.00 | M43: 30% | N43: 9,000.00 | O43: 42.9%
A44: 37 | C44: 储气罐 | F44: 台 | G44: 5 | H44: 2010-01-31 | K44: 0 | L44: 11,500.00 | M44: 30% | N44: 3,450.00 | O44: 0.0%
A45: 38 | C45: 打码机 | F45: 台 | G45: 2 | H45: 2010-02-28 | K45: 0 | L45: 5,200.00 | M45: 30% | N45: 1,560.00 | O45: 0.0%
A46: 39 | C46: 扭剪扳手 | F46: 台 | G46: 1 | H46: 2010-02-28 | J46: 6,800.00 | K46: 1,360.00 | L46: 4,300.00 | M46: 30% | N46: 1,290.00 | O46: -5.1%
A47: 40 | C47: 磁力钻 | F47: 台 | G47: 3 | H47: 2010-02-28 | J47: 8,640.00 | K47: 1,728.00 | L47: 8,550.00 | M47: 30% | N47: 2,565.00 | O47: 48.4%
A48: 41 | C48: 硫化机 | F48: 台 | G48: 1 | H48: 2010-11-30 | J48: 49,000.00 | K48: 9,800.00 | L48: 50,000.00 | M48: 30% | N48: 15,000.00 | O48: 53.1%
A49: 42 | C49: 校直机 | F49: 台 | G49: 1 | H49: 2010-11-30 | K49: 0 | L49: 6,600.00 | M49: 30% | N49: 1,980.00 | O49: 0.0%
A50: 43 | C50: 电动扭力扳手 | F50: 台 | G50: 2 | H50: 2010-11-30 | J50: 11,200.00 | K50: 2,240.00 | L50: 5,300.00 | M50: 30% | N50: 1,590.00 | O50: -29.0%
A51: 44 | C51: 液压弯管器 | F51: 台 | G51: 6 | H51: 2010-11-30 | J51: 14,400.00 | K51: 2,880.00 | L51: 13,800.00 | M51: 30% | N51: 4,140.00 | O51: 43.8%
A52: 45 | C52: 液压千斤顶 | D52: 200t | F52: 台 | G52: 2 | H52: 2010-11-30 | K52: 0 | L52: 18,400.00 | M52: 30% | N52: 5,520.00 | O52: 0.0%
A53: 46 | C53: 液压千斤顶 | D53: 100t | F53: 台 | G53: 10 | H53: 2010-11-30 | K53: 0 | L53: 40,000.00 | M53: 30% | N53: 12,000.00 | O53: 0.0%
A54: 47 | C54: 液压千斤顶 | D54: 8T-50T | F54: 台 | G54: 15 | H54: 2010-11-30 | K54: 0 | L54: 51,000.00 | M54: 30% | N54: 15,300.00 | O54: 0.0%
A55: 48 | C55: 机械千斤顶 | D55: 8T-32t | F55: 台 | G55: 20 | H55: 2010-11-30 | K55: 0 | L55: 38,000.00 | M55: 30% | N55: 11,400.00 | O55: 0.0%
A56: 49 | C56: 机械千斤顶 | D56: 50t | F56: 台 | G56: 6 | H56: 2010-11-30 | K56: 0 | L56: 13,560.00 | M56: 30% | N56: 4,068.00 | O56: 0.0%
A57: 50 | C57: 手拉葫芦 | D57: 20T | F57: 台 | G57: 7 | H57: 2010-11-30 | J57: 43,400.00 | K57: 8,680.00 | L57: 66,080.00 | M57: 30% | N57: 19,824.00 | O57: 128.4%
A58: 51 | C58: 手拉葫芦 | D58: 10T | F58: 台 | G58: 14 | H58: 2010-11-30 | J58: 40,320.00 | K58: 8,064.00 | L58: 69,986.00 | M58: 30% | N58: 20,995.80 | O58: 160.4%
A59: 52 | C59: 手拉葫芦 | D59: 1-3T | F59: 台 | G59: 75 | H59: 2010-11-30 | K59: 0 | L59: 126,750.00 | M59: 30% | N59: 38,025.00 | O59: 0.0%
A60: 53 | C60: 手拉葫芦 | D60: 5T | F60: 台 | G60: 80 | H60: 2011-03-31 | K60: 0 | L60: 88,000.00 | M60: 40% | N60: 35,200.00 | O60: 0.0%
A61: 54 | C61: 烘箱 | F61: 台 | G61: 3 | H61: 2011-03-31 | J61: 6,900.00 | K61: 1,380.00 | L61: 9,300.00 | M61: 40% | N61: 3,720.00 | O61: 169.6%
A62: 55 | C62: 角磨机 | F62: 台 | G62: 3 | H62: 2011-03-31 | J62: 3,510.00 | K62: 702.00 | L62: 3,300.00 | M62: 40% | N62: 1,320.00 | O62: 88.0%
A63: 56 | C63: 搅拌机 | F63: 台 | G63: 4 | H63: 2011-03-31 | J63: 8,000.00 | K63: 1,600.00 | L63: 9,200.00 | M63: 40% | N63: 3,680.00 | O63: 130.0%
A64: 57 | C64: 电锤 | F64: 台 | G64: 4 | H64: 2011-03-31 | J64: 12,800.00 | K64: 2,560.00 | L64: 8,800.00 | M64: 40% | N64: 3,520.00 | O64: 37.5%
A65: 58 | C65: 框式水平仪 | F65: 台 | G65: 37 | H65: 2011-03-31 | K65: 0 | L65: 45,140.00 | M65: 40% | N65: 18,056.00 | O65: 0.0%
A66: 59 | C66: 条式水平仪 | F66: 台 | G66: 7 | H66: 2011-03-31 | K66: 0 | L66: 7,700.00 | M66: 40% | N66: 3,080.00 | O66: 0.0%
A67: 60 | C67: 电动导丝机 | D67: 1/2"-3" | F67: 台 | G67: 8 | H67: 2011-03-31 | J67: 25,600.00 | K67: 5,120.00 | L67: 24,800.00 | M67: 40% | N67: 9,920.00 | O67: 93.8%
A68: 61 | C68: 半自动割刀 | F68: 台 | G68: 11 | H68: 2011-04-30 | J68: 136,081.00 | K68: 27,216.20 | L68: 82,500.00 | M68: 40% | N68: 33,000.00 | O68: 21.3%
A69: 62 | C69: 台式砂轮机 | F69: 台 | G69: 4 | H69: 2011-04-30 | J69: 5,280.00 | K69: 1,056.00 | L69: 4,800.00 | M69: 40% | N69: 1,920.00 | O69: 81.8%
A70: 63 | C70: 电动扳手 | F70: 台 | G70: 3 | H70: 2011-04-30 | J70: 17,400.00 | K70: 3,480.00 | L70: 9,600.00 | M70: 40% | N70: 3,840.00 | O70: 10.3%
A71: 64 | C71: 手电钻 | F71: 台 | G71: 3 | H71: 2011-04-30 | J71: 8,400.00 | K71: 1,680.00 | L71: 6,300.00 | M71: 40% | N71: 2,520.00 | O71: 50.0%
A72: 65 | C72: 扭力扳手 | F72: 台 | G72: 10 | H72: 2011-04-30 | J72: 58,000.00 | K72: 11,600.00 | L72: 42,000.00 | M72: 40% | N72: 16,800.00 | O72: =IF(K72=0,,(N72-K72)/K72) -> 44.8%
A73: 66 | C73: 钢板夹 | F73: 台 | G73: 15 | H73: 2011-04-30 | K73: 0 | L73: 25,320.00 | M73: 40% | N73: 10,128.00 | O73: 0.0%
A74: 67 | C74: 木工台锯，刨木机 | F74: 台 | G74: 3 | H74: 2011-04-30 | K74: 0 | L74: 5,280.00 | M74: 40% | N74: =L74*M74 -> 2,112.00 | O74: 0.0%
A75: 68 | C75: 龙门钳 | F75: 台 | G75: 2 | H75: 2011-04-30 | K75: 0 | L75: 720.00 | M75: 40% | N75: 288.00 | O75: 0.0%
A76: 69 | C76: 行走小车 | D76: 3T | F76: 台 | G76: 3 | H76: 2011-04-30 | K76: 0 | L76: 14,400.00 | M76: 40% | N76: 5,760.00 | O76: 0.0%
A77: 70 | C77: 配电柜 | F77: 台 | G77: 15 | H77: 2011-04-30 | K77: 0 | L77: 34,500.00 | M77: 40% | N77: 13,800.00 | O77: 0.0%
A78: 72 | C78: 电磨 | F78: 台 | G78: 2 | H78: 2011-04-30 | K78: 0 | L78: 2,600.00 | M78: 40% | N78: 1,040.00 | O78: 0.0%
A79: 73 | C79: 叉车 | F79: 台 | G79: 6 | H79: 2011-04-30 | K79: 0 | L79: 192,000.00 | M79: 40% | N79: 76,800.00 | O79: 0.0%
A80: 74 | C80: 振动电机 | F80: 台 | G80: 9 | H80: 2011-04-30 | J80: 26,208.00 | K80: 5,241.60 | L80: 24,750.00 | M80: 40% | N80: 9,900.00 | O80: 88.9%
A81: 75 | C81: 行走小车 | D81: 5T | F81: 台 | G81: 4 | H81: 2011-04-30 | K81: 0 | L81: 19,200.00 | M81: 40% | N81: 7,680.00 | O81: 0.0%
A82: 76 | C82: 电动坡口机 | F82: 台 | G82: 1 | H82: 2011-04-30 | K82: 0 | L82: 2,600.00 | M82: 40% | N82: 1,040.00 | O82: 0.0%
A83: 77 | C83: 手动扳丝机 | D83: 1-2"-2 | F83: 台 | G83: 4 | H83: 2011-04-30 | K83: 0 | L83: 8,200.00 | M83: 40% | N83: 3,280.00 | O83: 0.0%
A84: 78 | C84: 手动扳丝机 | D84: 4" | F84: 台 | G84: 1 | H84: 2011-04-30 | K84: 0 | L84: 2,050.00 | M84: 40% | N84: 820.00 | O84: 0.0%
A85: 79 | C85: 手摇抽油泵 | F85: 台 | G85: 6 | H85: 2011-04-30 | K85: 0 | L85: 18,000.00 | M85: 40% | N85: 7,200.00 | O85: 0.0%
A86: 80 | C86: 潜水泵 | F86: 台 | G86: 3 | H86: 2011-12-31 | J86: 6,900.00 | K86: 1,380.00 | L86: 9,900.00 | M86: 40% | N86: 3,960.00 | O86: 187.0%
A87: 81 | C87: 柴油发电机 | F87: 台 | G87: 3 | H87: 2011-12-31 | J87: 17,160.00 | K87: 3,432.00 | L87: 5,100.00 | M87: 40% | N87: 2,040.00 | O87: -40.6%
A88: 82 | C88: 鼓风机 | F88: 台 | G88: 5 | H88: 2011-12-31 | K88: 0 | L88: 15,500.00 | M88: 40% | N88: 6,200.00 | O88: 0.0%
A89: 83 | C89: 摇臂钻床 | D89: Z35、50mm | F89: 台 | G89: 1 | H89: 2011-12-31 | K89: 0 | L89: 19,800.00 | M89: 40% | N89: 7,920.00 | O89: 0.0%
A90: 84 | C90: 摇臂钻床 | D90: ZY3725、25mm | F90: 台 | G90: 2 | H90: 2011-12-31 | K90: 0 | L90: 45,600.00 | M90: 40% | N90: 18,240.00 | O90: 0.0%
A91: 85 | C91: 摇臂钻床 | D91: Z3132/32mm | F91: 台 | G91: 1 | H91: 2011-12-31 | K91: 0 | L91: 11,900.00 | M91: 40% | N91: 4,760.00 | O91: 0.0%
A92: 86 | C92: 试压泵 | F92: 台 | G92: 3 | H92: 2011-12-31 | K92: 0 | L92: 9,750.00 | M92: 40% | N92: 3,900.00 | O92: 0.0%
A93: 87 | C93: 切割机 | D93: 二相 | F93: 台 | G93: 2 | H93: 2011-12-31 | J93: 14,500.00 | K93: 2,900.00 | L93: 9,600.00 | M93: 40% | N93: 3,840.00 | O93: 32.4%
A94: 88 | C94: 切割机 | D94: 三相 | F94: 台 | G94: 2 | H94: 2011-12-31 | J94: 10,400.00 | K94: 2,080.00 | L94: 9,600.00 | M94: 40% | N94: 3,840.00 | O94: 84.6%
A95: 89 | C95: 发电机 | D95: 大 | F95: 台 | G95: 3 | H95: 2011-12-31 | J95: 8,700.00 | K95: 1,740.00 | L95: 9,300.00 | M95: 40% | N95: 3,720.00 | O95: 113.8%
A96: 90 | C96: 发电机 | F96: 台 | G96: 2 | H96: 2011-12-31 | J96: 4,200.00 | K96: 840.00 | L96: 6,200.00 | M96: 40% | N96: 2,480.00 | O96: 195.2%
A97: 91 | C97: 电机 | F97: 台 | G97: 8 | H97: 2011-12-31 | J97: 23,296.00 | K97: 4,659.20 | L97: 2,500.00 | M97: 40% | N97: 1,000.00 | O97: -78.5%
A98: 92 | C98: 大八相滑子 | F98: 台 | G98: 2 | H98: 2011-12-31 | J98: 320.00 | K98: 64.00 | L98: 320.00 | M98: 40% | N98: 128.00 | O98: 100.0%
A99: 93 | C99: 电动千斤顶 | F99: 台 | G99: 3 | H99: 2011-12-31 | J99: 22,200.00 | K99: 4,440.00 | L99: 7,500.00 | M99: 40% | N99: 3,000.00 | O99: -32.4%
A100: 94 | C100: 保险柜 | F100: 台 | G100: 2 | H100: 2011-12-31 | K100: 0 | L100: 1,980.00 | M100: 40% | N100: 792.00 | O100: 0.0%
A101: 95 | C101: 锅炉 | F101: 台 | G101: 1 | H101: 2011-12-31 | J101: 3,000.00 | K101: 600.00 | L101: 1,969.00 | M101: 40% | N101: 787.60 | O101: 31.3%
A102: 96 | C102: 蒸饭器 | F102: 台 | G102: 1 | H102: 2011-12-31 | J102: 2,800.00 | K102: 560.00 | L102: 2,300.00 | M102: 40% | N102: 920.00 | O102: 64.3%
A103: 97 | C103: 冰柜 | F103: 台 | G103: 1 | H103: 2011-12-31 | J103: 9,420.00 | K103: 1,884.00 | L103: 5,300.00 | M103: 40% | N103: 2,120.00 | O103: 12.5%
A104: 98 | C104: 试压泵 | F104: 台 | G104: 2 | H104: 2011-12-31 | K104: 0 | L104: 6,500.00 | M104: 40% | N104: 2,600.00 | O104: 0.0%
A105: 99 | C105: 水泵 | F105: 台 | G105: 4 | H105: 2011-12-31 | K105: 0 | L105: 9,520.00 | M105: 40% | N105: 3,808.00 | O105: 0.0%
A106: 100 | C106: 压线钳 | F106: 套 | G106: 5 | H106: 2011-12-31 | K106: 0 | L106: 8,000.00 | M106: 40% | N106: 3,200.00 | O106: 0.0%
A107: 101 | C107: 广东南雄项目工地： | J107: 0.00 | K107: 0 | N107: 0.00 | O107: 0.0%
A108: 102 | C108: 龙门吊 | D108: 10T | F108: 台 | G108: 3 | H108: 2012-07-31 | J108: 166,787.79 | K108: 33,357.56 | L108: 240,000.00 | M108: 50% | N108: 120,000.00 | O108: 259.7%
A109: 103 | C109: 交流电焊机 | F109: 台 | G109: 169 | H109: 2012-07-31 | K109: 0 | L109: 361,660.00 | M109: 50% | N109: 180,830.00 | O109: 0.0%
A110: 104 | C110: 直流电焊机 | D110: 630 | F110: 台 | G110: 2 | H110: 2012-07-31 | J110: 15,200.00 | K110: 3,040.00 | L110: 5,100.00 | M110: 50% | N110: 2,550.00 | O110: -16.1%
A111: 105 | C111: 直流电焊机 | D111: 小 | F111: 台 | G111: 2 | H111: 2012-07-31 | J111: 12,800.00 | K111: 2,560.00 | L111: 5,100.00 | M111: 50% | N111: 2,550.00 | O111: -0.4%
A112: 106 | C112: 二保电焊机 | F112: 台 | G112: 16 | H112: 2012-07-31 | J112: 48,000.00 | K112: 9,600.00 | L112: 64,000.00 | M112: 50% | N112: 32,000.00 | O112: 233.3%
A113: 107 | C113: 二保电焊机 | D113: 机头 | F113: 台 | G113: 20 | H113: 2012-07-31 | J113: 60,000.00 | K113: 12,000.00 | L113: 80,000.00 | M113: 50% | N113: 40,000.00 | O113: 233.3%
A114: 108 | C114: 埋弧电焊机 | F114: 台 | G114: 2 | H114: 2012-07-31 | J114: 66,000.00 | K114: 13,200.00 | L114: 70,288.00 | M114: 50% | N114: 35,144.00 | O114: 166.2%
A115: 109 | C115: 等离子焊机 | D115: 15-25*2000 | F115: 台 | G115: 2 | H115: 2012-07-31 | K115: 0 | L115: 11,000.00 | M115: 50% | N115: 5,500.00 | O115: 0.0%
A116: 110 | C116: 卷板机 | D116: 5T | F116: 台 | G116: 5 | H116: 2012-07-31 | J116: 425,000.00 | K116: 85,000.00 | L116: 35,000.00 | M116: 50% | N116: 17,500.00 | O116: -79.4%
A117: 111 | C117: 卷扬机 | F117: 台 | G117: 4 | H117: 2012-07-31 | J117: 61,200.00 | K117: 12,240.00 | L117: 23,200.00 | M117: 50% | N117: 11,600.00 | O117: -5.2%
A118: 112 | C118: 经纬仪 | F118: 台 | G118: 4 | H118: 2012-07-31 | J118: 36,000.00 | K118: 7,200.00 | L118: 24,000.00 | M118: 50% | N118: 12,000.00 | O118: 66.7%
A119: 113 | C119: 水准仪 | F119: 台 | G119: 9 | H119: 2012-07-31 | J119: 13,050.00 | K119: 2,610.00 | L119: 9,000.00 | M119: 50% | N119: 4,500.00 | O119: 72.4%
A120: 114 | C120: 空压机 | D120: 63带杀罐，储气罐 | F120: 台 | G120: 3 | H120: 2012-07-31 | J120: 17,400.00 | K120: 3,480.00 | L120: 5,000.00 | M120: 50% | N120: 2,500.00 | O120: -28.2%
A121: 115 | C121: 空压机 | F121: 台 | G121: 4 | H121: 2012-07-31 | J121: 8,400.00 | K121: 1,680.00 | L121: 9,200.00 | M121: 50% | N121: 4,600.00 | O121: 173.8%
A122: 116 | C122: 储气罐 | F122: 台 | G122: 1 | H122: 2012-07-31 | K122: 0 | L122: 2,300.00 | M122: 50% | N122: 1,150.00 | O122: 0.0%
A123: 117 | C123: 打码机 | F123: 台 | G123: 1 | H123: 2012-07-31 | K123: 0 | L123: 2,600.00 | M123: 50% | N123: 1,300.00 | O123: 0.0%
A124: 118 | C124: 扭剪扳手 | F124: 台 | G124: 2 | H124: 2012-07-31 | J124: 13,600.00 | K124: 2,720.00 | L124: 9,600.00 | M124: 50% | N124: 4,800.00 | O124: 76.5%
A125: 119 | C125: 磁力钻 | F125: 台 | G125: 3 | H125: 2012-07-31 | J125: 8,640.00 | K125: 1,728.00 | L125: 7,500.00 | M125: 50% | N125: 3,750.00 | O125: 117.0%
A126: 120 | C126: 砌砖机 | F126: 台 | G126: 1 | H126: 2012-07-31 | J126: 82,500.00 | K126: 16,500.00 | L126: 66,000.00 | M126: 50% | N126: 33,000.00 | O126: 100.0%
A127: 121 | C127: 液压弯管机 | F127: 台 | G127: 1 | H127: 2012-07-31 | J127: 2,400.00 | K127: 480.00 | L127: 2,000.00 | M127: 50% | N127: 1,000.00 | O127: 108.3%
A128: 122 | C128: 液压千斤顶 | D128: 100t | F128: 台 | G128: 5 | H128: 2012-07-31 | K128: 0 | L128: 20,000.00 | M128: 50% | N128: 10,000.00 | O128: 0.0%
A129: 123 | C129: 液压千斤顶 | D129: 8-50t | F129: 台 | G129: 5 | H129: 2012-07-31 | K129: 0 | L129: 17,000.00 | M129: 50% | N129: 8,500.00 | O129: 0.0%
A130: 124 | C130: 液压千斤顶 | D130: 8-32t | F130: 台 | G130: 22 | H130: 2012-07-31 | K130: 0 | L130: 41,800.00 | M130: 50% | N130: 20,900.00 | O130: 0.0%
A131: 125 | C131: 手拉葫芦 | D131: 1-3T | F131: 台 | G131: 174 | H131: 2012-07-31 | J131: 261,000.00 | K131: 52,200.00 | L131: 294,060.00 | M131: 50% | N131: 147,030.00 | O131: 181.7%
A132: 126 | C132: 烘箱 | F132: 台 | G132: 2 | H132: 2012-07-31 | J132: 4,600.00 | K132: 920.00 | L132: 3,500.00 | M132: 50% | N132: 1,750.00 | O132: 90.2%
A133: 127 | C133: 角磨机 | F133: 台 | G133: 34 | H133: 2012-07-31 | J133: 39,780.00 | K133: 7,956.00 | L133: 34,000.00 | M133: 50% | N133: 17,000.00 | O133: 113.7%
A134: 128 | C134: 搅拌机 | F134: 台 | G134: 10 | H134: 2012-07-31 | J134: 20,000.00 | K134: 4,000.00 | L134: 22,000.00 | M134: 50% | N134: 11,000.00 | O134: 175.0%
A135: 129 | C135: 电锤 | F135: 台 | G135: 12 | H135: 2012-07-31 | J135: 38,400.00 | K135: 7,680.00 | L135: 26,400.00 | M135: 50% | N135: 13,200.00 | O135: 71.9%
A136: 130 | C136: 框式水平仪 | F136: 台 | G136: 11 | H136: 2012-07-31 | J136: 13,420.00 | K136: 2,684.00 | L136: 24,200.00 | M136: 50% | N136: 12,100.00 | O136: =IF(K136=0,,(N136-K136)/K136) -> 350.8%
A137: 131 | C137: 条式水平仪 | F137: 台 | G137: 2 | H137: 2012-07-31 | J137: 2,200.00 | K137: 440.00 | L137: 2,000.00 | M137: 50% | N137: 1,000.00 | O137: 127.3%
A138: 132 | C138: 电动导丝机 | D138: 1/2"-3" | F138: 台 | G138: 3 | H138: 2012-07-31 | J138: 9,600.00 | K138: 1,920.00 | L138: 4,500.00 | M138: 50% | N138: =L138*M138 -> 2,250.00 | O138: 17.2%
A139: 133 | C139: 手动扳丝机 | D139: 1/2"-2" | F139: 台 | G139: 3 | H139: 2012-07-31 | J139: 6,750.00 | K139: 1,350.00 | L139: 10,950.00 | M139: 50% | N139: 5,475.00 | O139: 305.6%
A140: 134 | C140: 半自动割刀 | F140: 台 | G140: 14 | H140: 2012-07-31 | J140: 173,194.00 | K140: 34,638.80 | L140: 105,000.00 | M140: 50% | N140: 52,500.00 | O140: 51.6%
A141: 135 | C141: 送丝机头 | F141: 台 | G141: 4 | H141: 2012-07-31 | K141: 0 | L141: 4,000.00 | M141: 50% | N141: 2,000.00 | O141: 0.0%
A142: 136 | C142: 台式砂轮机 | F142: 台 | G142: 2 | H142: 2012-07-31 | J142: 2,640.00 | K142: 528.00 | L142: 2,400.00 | M142: 50% | N142: 1,200.00 | O142: 127.3%
A143: 137 | C143: 电动扳手 | F143: 台 | G143: 8 | H143: 2012-07-31 | J143: 46,400.00 | K143: 9,280.00 | L143: 25,600.00 | M143: 50% | N143: 12,800.00 | O143: 37.9%
A144: 138 | C144: 手电钻 | F144: 台 | G144: 3 | H144: 2012-07-31 | J144: 8,400.00 | K144: 1,680.00 | L144: 6,300.00 | M144: 50% | N144: 3,150.00 | O144: 87.5%
A145: 139 | C145: 扭力扳手 | F145: 台 | G145: 5 | H145: 2012-07-31 | J145: 29,000.00 | K145: 5,800.00 | L145: 21,000.00 | M145: 50% | N145: 10,500.00 | O145: 81.0%
A146: 140 | C146: 钢板夹 | F146: 台 | G146: 12 | H146: 2012-07-31 | K146: 0 | L146: 33,600.00 | M146: 50% | N146: 16,800.00 | O146: 0.0%
A147: 141 | C147: 木工台锯，刨木机 | F147: 台 | G147: 7 | H147: 2012-07-31 | K147: 0 | L147: 12,320.00 | M147: 50% | N147: 6,160.00 | O147: 0.0%
A148: 142 | C148: 配电柜 | F148: 台 | G148: 24 | H148: 2012-07-31 | K148: 0 | L148: 55,200.00 | M148: 50% | N148: 27,600.00 | O148: 0.0%
A149: 143 | C149: 电磨 | F149: 台 | G149: 2 | H149: 2012-07-31 | K149: 0 | L149: 2,600.00 | M149: 50% | N149: 1,300.00 | O149: 0.0%
A150: 144 | C150: 叉车 | F150: 台 | G150: 1 | H150: 2012-07-31 | K150: 0 | L150: 32,000.00 | M150: 50% | N150: 16,000.00 | O150: 0.0%
A151: 145 | C151: 鼓风机 | F151: 台 | G151: 1 | H151: 2012-07-31 | K151: 0 | L151: 3,100.00 | M151: 50% | N151: 1,550.00 | O151: 0.0%
A152: 146 | C152: 切割机 | D152: 二相 | F152: 台 | G152: 2 | H152: 2012-07-31 | J152: 14,500.00 | K152: 2,900.00 | L152: 9,600.00 | M152: 50% | N152: 4,800.00 | O152: 65.5%
A153: 147 | C153: 切割机 | D153: 三相 | F153: 台 | G153: 3 | H153: 2012-07-31 | J153: 15,600.00 | K153: 3,120.00 | L153: 13,500.00 | M153: 50% | N153: 6,750.00 | O153: 116.3%
A154: 148 | C154: 保险柜 | F154: 台 | G154: 1 | H154: 2012-07-31 | K154: 0 | L154: 990.00 | M154: 50% | N154: 495.00 | O154: 0.0%
A155: 149 | C155: 蒸饭器 | F155: 台 | G155: 1 | H155: 2012-07-31 | J155: 2,800.00 | K155: 560.00 | L155: 1,200.00 | M155: 50% | N155: 600.00 | O155: 7.1%
A156: 150 | C156: 冰柜 | F156: 台 | G156: 1 | H156: 2012-07-31 | J156: 9,420.00 | K156: 1,884.00 | L156: 5,300.00 | M156: 50% | N156: 2,650.00 | O156: 40.7%
A157: 151 | C157: 试压泵 | F157: 台 | G157: 2 | H157: 2012-07-31 | K157: 0 | L157: 6,500.00 | M157: 50% | N157: 3,250.00 | O157: 0.0%
A158: 152 | C158: 水泵 | F158: 台 | G158: 4 | H158: 2012-07-31 | K158: 0 | L158: 9,520.00 | M158: 50% | N158: 4,760.00 | O158: 0.0%
A159: 153 | C159: 绞肉机 | F159: 台 | G159: 1 | H159: 2012-07-31 | K159: 0 | L159: 1,600.00 | M159: 50% | N159: 800.00 | O159: 0.0%
A160: 154 | C160: 广东春谭： | J160: 0.00 | K160: 0 | N160: 0.00 | O160: 0.0%
A161: 155 | C161: 龙门吊 | D161: 10T | F161: 台 | G161: 2 | H161: 2012-08-31 | J161: 111,191.86 | K161: 33,357.56 | L161: 160,000.00 | M161: 50% | N161: 80,000.00 | O161: 139.8%
A162: 156 | C162: 交流电焊机 | F162: 台 | G162: 79 | H162: 2012-08-31 | J162: 167,480.00 | K162: 50,244.00 | L162: 169,060.00 | M162: 50% | N162: 84,530.00 | O162: 68.2%
A163: 157 | C163: 二保电焊机 | F163: 台 | G163: 11 | H163: 2012-08-31 | J163: 33,000.00 | K163: 6,600.00 | L163: 44,000.00 | M163: 50% | N163: 22,000.00 | O163: 233.3%
A164: 158 | C164: 卷板机 | D164: 15-25*2000 | F164: 台 | G164: 2 | H164: 2012-08-31 | K164: 0 | L164: 11,000.00 | M164: 50% | N164: 5,500.00 | O164: 0.0%
A165: 159 | C165: 卷扬机 | D165: 5T | F165: 台 | G165: 1 | H165: 2012-08-31 | J165: 85,000.00 | K165: 17,000.00 | L165: 12,800.00 | M165: 50% | N165: 6,400.00 | O165: -62.4%
A166: 160 | C166: 水准仪 | F166: 台 | G166: 1 | H166: 2012-08-31 | J166: 1,450.00 | K166: 290.00 | L166: 1,000.00 | M166: 50% | N166: 500.00 | O166: 72.4%
A167: 161 | C167: 探伤仪 | F167: 台 | G167: 4 | H167: 2012-08-31 | J167: 30,000.00 | K167: 6,000.00 | L167: 30,000.00 | M167: 50% | N167: 15,000.00 | O167: 150.0%
A168: 162 | C168: 空压机 | D168: 63带杀罐，储气罐 | F168: 台 | G168: 1 | H168: 2012-08-31 | J168: 5,800.00 | K168: 1,160.00 | L168: 3,600.00 | M168: 50% | N168: 1,800.00 | O168: 55.2%
A169: 163 | C169: 空压机 | F169: 台 | G169: 1 | H169: 2012-08-31 | J169: 2,100.00 | K169: 420.00 | L169: 2,300.00 | M169: 50% | N169: 1,150.00 | O169: 173.8%
A170: 164 | C170: 储气罐 | F170: 台 | G170: 1 | H170: 2012-08-31 | K170: 0 | L170: 2,300.00 | M170: 50% | N170: 1,150.00 | O170: 0.0%
A171: 165 | C171: 扭剪扳手 | F171: 台 | G171: 1 | H171: 2012-08-31 | J171: 6,800.00 | K171: 1,360.00 | L171: 4,800.00 | M171: 50% | N171: 2,400.00 | O171: 76.5%
A172: 166 | C172: 磁力钻 | F172: 台 | G172: 3 | H172: 2012-08-31 | J172: 8,640.00 | K172: 1,728.00 | L172: 7,500.00 | M172: 50% | N172: 3,750.00 | O172: 117.0%
A173: 167 | C173: 电动扭力扳手 | F173: 台 | G173: 1 | H173: 2012-08-31 | J173: 5,600.00 | K173: 1,120.00 | L173: 4,200.00 | M173: 50% | N173: 2,100.00 | O173: 87.5%
A174: 168 | C174: 液压弯管器 | F174: 台 | G174: 1 | H174: 2012-08-31 | J174: 2,400.00 | K174: 480.00 | L174: 2,000.00 | M174: 50% | N174: 1,000.00 | O174: 108.3%
A175: 169 | C175: 液压千斤顶 | D175: 200t | F175: 台 | G175: 2 | H175: 2012-08-31 | K175: 0 | L175: 18,400.00 | M175: 50% | N175: 9,200.00 | O175: 0.0%
A176: 170 | C176: 机械千斤顶 | D176: 8T-32t | F176: 台 | G176: 16 | H176: 2012-08-31 | K176: 0 | L176: 30,400.00 | M176: 50% | N176: 15,200.00 | O176: 0.0%
A177: 171 | C177: 机械千斤顶 | D177: 50 | F177: 台 | G177: 3 | H177: 2012-08-31 | K177: 0 | L177: 6,780.00 | M177: 50% | N177: 3,390.00 | O177: 0.0%
A178: 172 | C178: 手拉葫芦 | D178: 20T | F178: 台 | G178: 1 | H178: 2012-08-31 | J178: 6,200.00 | K178: 1,240.00 | L178: 9,440.00 | M178: 50% | N178: 4,720.00 | O178: 280.6%
A179: 173 | C179: 手拉葫芦 | D179: 10T | F179: 台 | G179: 3 | H179: 2012-08-31 | J179: 8,640.00 | K179: 1,728.00 | L179: 14,997.00 | M179: 50% | N179: 7,498.50 | O179: 333.9%
A180: 174 | C180: 手拉葫芦 | D180: 1-3T | F180: 台 | G180: 38 | H180: 2012-08-31 | K180: 0 | L180: 64,220.00 | M180: 50% | N180: 32,110.00 | O180: 0.0%
A181: 175 | C181: 手拉葫芦 | D181: 5T | F181: 台 | G181: 11 | H181: 2012-08-31 | K181: 0 | L181: 12,100.00 | M181: 50% | N181: 6,050.00 | O181: 0.0%
A182: 176 | C182: 角磨机 | F182: 台 | G182: 28 | H182: 2012-08-31 | J182: 32,760.00 | K182: 6,552.00 | L182: 44,100.00 | M182: 50% | N182: 22,050.00 | O182: 236.5%
A183: 177 | C183: 电锤 | F183: 台 | G183: 1 | H183: 2012-08-31 | J183: 3,200.00 | K183: 640.00 | L183: 2,200.00 | M183: 50% | N183: 1,100.00 | O183: 71.9%
A184: 178 | C184: 框式水平仪 | F184: 台 | G184: 6 | H184: 2012-08-31 | K184: 0 | L184: 7,320.00 | M184: 50% | N184: 3,660.00 | O184: 0.0%
A185: 179 | C185: 条式水平仪 | F185: 台 | G185: 3 | H185: 2012-08-31 | K185: 0 | L185: 3,300.00 | M185: 50% | N185: 1,650.00 | O185: 0.0%
A186: 180 | C186: 电动导丝机 | D186: 1/2"-3" | F186: 台 | G186: 1 | H186: 2012-08-31 | J186: 3,200.00 | K186: 640.00 | L186: 1,500.00 | M186: 50% | N186: 750.00 | O186: 17.2%
A187: 181 | C187: 半自动割刀 | F187: 台 | G187: 7 | H187: 2012-08-31 | J187: 86,597.00 | K187: 17,319.40 | L187: 52,500.00 | M187: 50% | N187: 26,250.00 | O187: 51.6%
A188: 182 | C188: 送丝机头 | F188: 台 | G188: 2 | H188: 2012-08-31 | K188: 0 | L188: 2,000.00 | M188: 50% | N188: 1,000.00 | O188: 0.0%
A189: 183 | C189: 台式砂轮机 | F189: 台 | G189: 1 | H189: 2012-08-31 | J189: 1,320.00 | K189: 264.00 | L189: 1,200.00 | M189: 50% | N189: 600.00 | O189: 127.3%
A190: 184 | C190: 电动扳手 | F190: 台 | G190: 2 | H190: 2012-08-31 | J190: 11,600.00 | K190: 2,320.00 | L190: 6,400.00 | M190: 50% | N190: 3,200.00 | O190: 37.9%
A191: 185 | C191: 扭力扳手 | F191: 台 | G191: 2 | H191: 2012-08-31 | J191: 11,600.00 | K191: 2,320.00 | L191: 8,400.00 | M191: 50% | N191: 4,200.00 | O191: 81.0%
A192: 186 | C192: 钢板夹 | F192: 台 | G192: 5 | H192: 2012-08-31 | K192: 0 | L192: 8,440.00 | M192: 50% | N192: 4,220.00 | O192: 0.0%
A193: 187 | C193: 龙门钳 | F193: 台 | G193: 1 | H193: 2012-08-31 | K193: 0 | L193: 360.00 | M193: 50% | N193: 180.00 | O193: 0.0%
A194: 188 | C194: 电磨 | F194: 台 | G194: 3 | H194: 2012-08-31 | K194: 0 | L194: 3,900.00 | M194: 50% | N194: 1,950.00 | O194: 0.0%
A195: 189 | C195: 切割机 | D195: 二相 | F195: 台 | G195: 2 | H195: 2012-08-31 | J195: 14,500.00 | K195: 2,900.00 | L195: 9,600.00 | M195: 50% | N195: 4,800.00 | O195: 65.5%
A196: 190 | C196: 切割机 | D196: 三相 | F196: 台 | G196: 2 | H196: 2012-08-31 | J196: 10,400.00 | K196: 2,080.00 | L196: 9,000.00 | M196: 50% | N196: 4,500.00 | O196: 116.3%
A197: 191 | C197: 切割机 | D197: 手提 | F197: 台 | G197: 1 | H197: 2012-08-31 | J197: 2,900.00 | K197: 580.00 | L197: 3,000.00 | M197: 50% | N197: 1,500.00 | O197: 158.6%
A198: 192 | C198: 保险柜 | F198: 台 | G198: 1 | H198: 2012-08-31 | K198: 0 | L198: 990.00 | M198: 50% | N198: 495.00 | O198: 0.0%
A199: 193 | C199: 四川康定： | J199: 0.00 | K199: 0 | N199: 0.00 | O199: 0.0%
A200: 194 | C200: 龙门吊 | D200: 10T | F200: 台 | G200: 1 | H200: 2013-01-31 | J200: 98,500.00 | K200: 19,700.00 | L200: 80,000.00 | M200: 60% | N200: 48,000.00 | O200: =IF(K200=0,,(N200-K200)/K200) -> 143.7%
A201: 195 | C201: 交流电焊机 | F201: 台 | G201: 41 | H201: 2013-01-31 | J201: 86,920.00 | K201: 17,384.00 | L201: 87,740.00 | M201: 60% | N201: 52,644.00 | O201: 202.8%
... 245 more rows

Sheet 湖北阳新娲石建材工地
A1: 机器设备清单
A2: 序号 | B2: 设备编号 | C2: 设备名称 | D2: 规格型号 | E2: 生产厂家 | F2: 计量单位 | G2: 数量 | H2: 购置日期 | I2: 备注
A4: 1 | C4: 湖北阳新娲石建材工地：
A5: 2 | C5: 焊机 | F5: 台 | G5: 35 | H5: 2012-05-31
A6: 3 | C6: 卷扬机 | D6: 3T | F6: 台 | G6: 1 | H6: 2012-05-31
A7: 4 | C7: 卷扬机 | D7: 5T | F7: 台 | G7: 1 | H7: 2012-05-31
A8: 5 | C8: 手拉葫芦 | D8: 10T | F8: 台 | G8: 2 | H8: 2012-05-31
A9: 6 | C9: 手拉葫芦 | D9: 5T | F9: 台 | G9: 17 | H9: 2012-05-31
A10: 7 | C10: 手拉葫芦 | D10: 3T | F10: 台 | G10: 17 | H10: 2012-05-31
A11: 8 | C11: 手拉葫芦 | D11: 2T | F11: 台 | G11: 3 | H11: 2012-05-31
A12: 9 | C12: 电锤 | F12: 台 | G12: 1 | H12: 2012-05-31
A13: 10 | C13: 液压千斤顶 | D13: 50T | F13: 台 | G13: 2 | H13: 2012-05-31
A14: 11 | C14: 液压千斤顶 | D14: 32T | F14: 台 | G14: 3 | H14: 2012-05-31
A15: 12 | C15: 机械千斤顶 | D15: 32T | F15: 台 | G15: 2 | H15: 2012-05-31
A16: 13 | C16: 机械千斤顶 | D16: 16T | F16: 台 | G16: 3 | H16: 2012-05-31
A17: 14 | C17: 框式水平尺 | F17: 台 | G17: 2 | H17: 2012-05-31
A18: 15 | C18: 配电柜 | F18: 个 | G18: 3 | H18: 2012-05-31
A19: 16 | C19: 配电箱 | F19: 个 | G19: 4 | H19: 2012-05-31
A20: 17 | C20: 电锤 | F20: 台 | G20: 3 | H20: 2012-05-31
A21: 18 | C21: 机械千斤顶 | D21: 32T、60T | F21: 台 | G21: 4 | H21: 2012-05-31
A22: 合 计 | G22: =SUM(G5:G21) -> 103

Sheet 总公司
A1: 机器设备清单
A2: 序号 | B2: 设备编号 | C2: 设备名称 | D2: 规格型号 | E2: 生产厂家 | F2: 计量单位 | G2: 数量 | H2: 购置日期 | I2: 备注
A4: 1 | C4: 龙门吊 | D4: 10T | F4: 台 | G4: 14 | H4: 2009-01-31
A5: 2 | C5: 龙门吊 | D5: 5T | F5: 台 | G5: 2 | H5: 2009-01-31
A6: 3 | C6: 交流电焊机 | F6: 台 | G6: 129 | H6: 2009-01-31
A7: 4 | C7: 直流电焊机 | D7: 630 | F7: 台 | G7: 15 | H7: 2009-01-31
A8: 5 | C8: 直流电焊机 | D8: 小 | F8: 台 | G8: 5 | H8: 2009-05-31
A9: 6 | C9: 二保电焊机 | F9: 台 | G9: 8 | H9: 2009-05-31
A10: 7 | C10: 埋弧电焊机 | F10: 台 | G10: 5 | H10: 2009-05-31
A11: 8 | C11: 等离子焊机 | F11: 台 | G11: 1 | H11: 2009-10-31
A12: 9 | C12: 卷板机 | D12: 15-25*2000 | F12: 台 | G12: 20 | H12: 2009-10-31
A13: 10 | C13: 卷板机 | D13: 10*1800 | F13: 台 | G13: 1 | H13: 2009-10-31
A14: 11 | C14: 卷扬机 | D14: 5T | F14: 台 | G14: 12 | H14: 2009-10-31
A15: 12 | C15: 卷扬机 | D15: 1-3T | F15: 台 | G15: 22 | H15: 2009-10-31
A16: 13 | C16: 经纬仪 | F16: 台 | G16: 7 | H16: 2009-10-31
A17: 14 | C17: 水准仪 | F17: 台 | G17: 17 | H17: 2009-10-31
A18: 15 | C18: 探伤仪 | F18: 台 | G18: 3 | H18: 2010-01-31
A19: 16 | C19: 空压机 | D19: 63带杀罐，储气罐 | F19: 台 | G19: 4 | H19: 2010-01-31
A20: 17 | C20: 空压机 | F20: 台 | G20: 15 | H20: 2010-01-31
A21: 18 | C21: 储气罐 | F21: 台 | G21: 5 | H21: 2010-01-31
A22: 19 | C22: 打码机 | F22: 台 | G22: 2 | H22: 2010-02-28
A23: 20 | C23: 扭剪扳手 | F23: 台 | G23: 1 | H23: 2010-02-28
A24: 21 | C24: 磁力钻 | F24: 台 | G24: 3 | H24: 2010-02-28
A25: 22 | C25: 硫化机 | F25: 台 | G25: 1 | H25: 2010-11-30
A26: 23 | C26: 校直机 | F26: 台 | G26: 1 | H26: 2010-11-30
A27: 24 | C27: 电动扭力扳手 | F27: 台 | G27: 2 | H27: 2010-11-30
A28: 25 | C28: 液压弯管器 | F28: 台 | G28: 6 | H28: 2010-11-30
A29: 26 | C29: 液压千斤顶 | D29: 200t | F29: 台 | G29: 2 | H29: 2010-11-30
A30: 27 | C30: 液压千斤顶 | D30: 100t | F30: 台 | G30: 10 | H30: 2010-11-30
A31: 28 | C31: 液压千斤顶 | D31: 8T-50T | F31: 台 | G31: 15 | H31: 2010-11-30
A32: 29 | C32: 机械千斤顶 | D32: 8T-32t | F32: 台 | G32: 20 | H32: 2010-11-30
A33: 30 | C33: 机械千斤顶 | D33: 50t | F33: 台 | G33: 6 | H33: 2010-11-30
A34: 31 | C34: 手拉葫芦 | D34: 20T | F34: 台 | G34: 7 | H34: 2010-11-30
A35: 32 | C35: 手拉葫芦 | D35: 10T | F35: 台 | G35: 14 | H35: 2010-11-30
A36: 33 | C36: 手拉葫芦 | D36: 1-3T | F36: 台 | G36: 75 | H36: 2010-11-30
A37: 34 | C37: 手拉葫芦 | D37: 5T | F37: 台 | G37: 80 | H37: 2011-03-31
A38: 35 | C38: 烘箱 | F38: 台 | G38: 3 | H38: 2011-03-31
A39: 36 | C39: 角磨机 | F39: 台 | G39: 3 | H39: 2011-03-31
A40: 37 | C40: 搅拌机 | F40: 台 | G40: 4 | H40: 2011-03-31
A41: 38 | C41: 电锤 | F41: 台 | G41: 4 | H41: 2011-03-31
A42: 39 | C42: 框式水平仪 | F42: 台 | G42: 37 | H42: 2011-03-31
A43: 40 | C43: 条式水平仪 | F43: 台 | G43: 7 | H43: 2011-03-31
A44: 41 | C44: 电动导丝机 | D44: 1/2"-3" | F44: 台 | G44: 8 | H44: 2011-03-31
A45: 42 | C45: 半自动割刀 | F45: 台 | G45: 11 | H45: 2011-04-30
A46: 43 | C46: 台式砂轮机 | F46: 台 | G46: 4 | H46: 2011-04-30
A47: 44 | C47: 电动扳手 | F47: 台 | G47: 3 | H47: 2011-04-30
A48: 45 | C48: 手电钻 | F48: 台 | G48: 3 | H48: 2011-04-30
A49: 46 | C49: 扭力扳手 | F49: 台 | G49: 10 | H49: 2011-04-30
A50: 47 | C50: 钢板夹 | F50: 台 | G50: 15 | H50: 2011-04-30
A51: 48 | C51: 木工台锯，刨木机 | F51: 台 | G51: 3 | H51: 2011-04-30
A52: 49 | C52: 龙门钳 | F52: 台 | G52: 2 | H52: 2011-04-30
A53: 50 | C53: 行走小车 | D53: 3T | F53: 台 | G53: 3 | H53: 2011-04-30
A54: 51 | C54: 配电柜 | F54: 台 | G54: 15 | H54: 2011-04-30
A55: 52 | C55: 电磨 | F55: 台 | G55: 2 | H55: 2011-04-30
A56: 53 | C56: 叉车 | F56: 台 | G56: 6 | H56: 2011-04-30
A57: 54 | C57: 振动电机 | F57: 台 | G57: 9 | H57: 2011-04-30
A58: 55 | C58: 行走小车 | D58: 5T | F58: 台 | G58: 4 | H58: 2011-04-30
A59: 56 | C59: 电动坡口机 | F59: 台 | G59: 1 | H59: 2011-04-30
A60: 57 | C60: 手动扳丝机 | D60: 1-2"-2 | F60: 台 | G60: 4 | H60: 2011-04-30
A61: 58 | C61: 手动扳丝机 | D61: 4" | F61: 台 | G61: 1 | H61: 2011-04-30
A62: 59 | C62: 手摇抽油泵 | F62: 台 | G62: 6 | H62: 2011-04-30
A63: 60 | C63: 潜水泵 | F63: 台 | G63: 3 | H63: 2011-12-31
A64: 61 | C64: 柴油发电机 | F64: 台 | G64: 3 | H64: 2011-12-31
A65: 62 | C65: 鼓风机 | F65: 台 | G65: 5 | H65: 2011-12-31
A66: 63 | C66: 摇臂钻床 | D66: Z35、50mm | F66: 台 | G66: 1 | H66: 2011-12-31
A67: 64 | C67: 摇臂钻床 | D67: ZY3725、25mm | F67: 台 | G67: 2 | H67: 2011-12-31
A68: 65 | C68: 摇臂钻床 | D68: Z3132/32mm | F68: 台 | G68: 1 | H68: 2011-12-31
A69: 66 | C69: 试压泵 | F69: 台 | G69: 3 | H69: 2011-12-31
A70: 67 | C70: 切割机 | D70: 二相 | F70: 台 | G70: 2 | H70: 2011-12-31
A71: 68 | C71: 切割机 | D71: 三相 | F71: 台 | G71: 2 | H71: 2011-12-31
A72: 69 | C72: 发电机 | D72: 大 | F72: 台 | G72: 3 | H72: 2011-12-31
A73: 70 | C73: 发电机 | F73: 台 | G73: 2 | H73: 2011-12-31
A74: 71 | C74: 电机 | F74: 台 | G74: 8 | H74: 2011-12-31
A75: 72 | C75: 大八相滑子 | F75: 台 | G75: 2 | H75: 2011-12-31
A76: 73 | C76: 电动千斤顶 | F76: 台 | G76: 3 | H76: 2011-12-31
A77: 74 | C77: 保险柜 | F77: 台 | G77: 2 | H77: 2011-12-31
A78: 75 | C78: 锅炉 | F78: 台 | G78: 1 | H78: 2011-12-31
A79: 76 | C79: 蒸饭器 | F79: 台 | G79: 1 | H79: 2011-12-31
A80: 77 | C80: 冰柜 | F80: 台 | G80: 1 | H80: 2011-12-31
A81: 78 | C81: 试压泵 | F81: 台 | G81: 2 | H81: 2011-12-31
A82: 79 | C82: 水泵 | F82: 台 | G82: 4 | H82: 2011-12-31
A83: 80 | C83: 压线钳 | F83: 套 | G83: 5 | H83: 2011-12-31
A84: 合计 | G84: =SUM(G4:G83) -> 754

Sheet 广东南雄项目工地
A1: 机器设备清单
A2: 序号 | B2: 设备编号 | C2: 设备名称 | D2: 规格型号 | E2: 生产厂家 | F2: 计量单位 | G2: 数量 | H2: 购置日期 | I2: 备注
A4: 1 | C4: 龙门吊 | D4: 10T | F4: 台 | G4: 3 | H4: 2012-07-31
A5: 2 | C5: 交流电焊机 | F5: 台 | G5: 169 | H5: 2012-07-31
A6: 3 | C6: 直流电焊机 | D6: 630 | F6: 台 | G6: 2 | H6: 2012-07-31
A7: 4 | C7: 直流电焊机 | D7: 小 | F7: 台 | G7: 2 | H7: 2012-07-31
A8: 5 | C8: 二保电焊机 | F8: 台 | G8: 16 | H8: 2012-07-31
A9: 6 | C9: 二保电焊机 | D9: 机头 | F9: 台 | G9: 20 | H9: 2012-07-31
A10: 7 | C10: 埋弧电焊机 | F10: 台 | G10: 2 | H10: 2012-07-31
A11: 8 | C11: 等离子焊机 | D11: 15-25*2000 | F11: 台 | G11: 2 | H11: 2012-07-31
A12: 9 | C12: 卷板机 | D12: 5T | F12: 台 | G12: 5 | H12: 2012-07-31
A13: 10 | C13: 卷扬机 | F13: 台 | G13: 4 | H13: 2012-07-31
A14: 11 | C14: 经纬仪 | F14: 台 | G14: 4 | H14: 2012-07-31
A15: 12 | C15: 水准仪 | F15: 台 | G15: 9 | H15: 2012-07-31
A16: 13 | C16: 空压机 | D16: 63带杀罐，储气罐 | F16: 台 | G16: 3 | H16: 2012-07-31
A17: 14 | C17: 空压机 | F17: 台 | G17: 4 | H17: 2012-07-31
A18: 15 | C18: 储气罐 | F18: 台 | G18: 1 | H18: 2012-07-31
A19: 16 | C19: 打码机 | F19: 台 | G19: 1 | H19: 2012-07-31
A20: 17 | C20: 扭剪扳手 | F20: 台 | G20: 2 | H20: 2012-07-31
A21: 18 | C21: 磁力钻 | F21: 台 | G21: 3 | H21: 2012-07-31
A22: 19 | C22: 砌砖机 | F22: 台 | G22: 1 | H22: 2012-07-31
A23: 20 | C23: 液压弯管机 | F23: 台 | G23: 1 | H23: 2012-07-31
A24: 21 | C24: 液压千斤顶 | D24: 100t | F24: 台 | G24: 5 | H24: 2012-07-31
A25: 22 | C25: 液压千斤顶 | D25: 8-50t | F25: 台 | G25: 5 | H25: 2012-07-31
A26: 23 | C26: 液压千斤顶 | D26: 8-32t | F26: 台 | G26: 22 | H26: 2012-07-31
A27: 24 | C27: 手拉葫芦 | D27: 1-3T | F27: 台 | G27: 174 | H27: 2012-07-31
A28: 25 | C28: 烘箱 | F28: 台 | G28: 2 | H28: 2012-07-31
A29: 26 | C29: 角磨机 | F29: 台 | G29: 34 | H29: 2012-07-31
A30: 27 | C30: 搅拌机 | F30: 台 | G30: 10 | H30: 2012-07-31
A31: 28 | C31: 电锤 | F31: 台 | G31: 12 | H31: 2012-07-31
A32: 29 | C32: 框式水平仪 | F32: 台 | G32: 11 | H32: 2012-07-31
A33: 30 | C33: 条式水平仪 | F33: 台 | G33: 2 | H33: 2012-07-31
A34: 31 | C34: 电动导丝机 | D34: 1/2"-3" | F34: 台 | G34: 3 | H34: 2012-07-31
A35: 32 | C35: 手动扳丝机 | D35: 1/2"-2" | F35: 台 | G35: 3 | H35: 2012-07-31
A36: 33 | C36: 半自动割刀 | F36: 台 | G36: 14 | H36: 2012-07-31
A37: 34 | C37: 送丝机头 | F37: 台 | G37: 4 | H37: 2012-07-31
A38: 35 | C38: 台式砂轮机 | F38: 台 | G38: 2 | H38: 2012-07-31
A39: 36 | C39: 电动扳手 | F39: 台 | G39: 8 | H39: 2012-07-31
A40: 37 | C40: 手电钻 | F40: 台 | G40: 3 | H40: 2012-07-31
A41: 38 | C41: 扭力扳手 | F41: 台 | G41: 5 | H41: 2012-07-31
A42: 39 | C42: 钢板夹 | F42: 台 | G42: 12 | H42: 2012-07-31
A43: 40 | C43: 木工台锯，刨木机 | F43: 台 | G43: 7 | H43: 2012-07-31
A44: 41 | C44: 配电柜 | F44: 台 | G44: 24 | H44: 2012-07-31
A45: 42 | C45: 电磨 | F45: 台 | G45: 2 | H45: 2012-07-31
A46: 43 | C46: 叉车 | F46: 台 | G46: 1 | H46: 2012-07-31
A47: 44 | C47: 鼓风机 | F47: 台 | G47: 1 | H47: 2012-07-31
A48: 45 | C48: 切割机 | D48: 二相 | F48: 台 | G48: 2 | H48: 2012-07-31
A49: 46 | C49: 切割机 | D49: 三相 | F49: 台 | G49: 3 | H49: 2012-07-31
A50: 47 | C50: 保险柜 | F50: 台 | G50: 1 | H50: 2012-07-31
A51: 48 | C51: 蒸饭器 | F51: 台 | G51: 1 | H51: 2012-07-31
A52: 49 | C52: 冰柜 | F52: 台 | G52: 1 | H52: 2012-07-31
A53: 50 | C53: 试压泵 | F53: 台 | G53: 2 | H53: 2012-07-31
A54: 51 | C54: 水泵 | F54: 台 | G54: 4 | H54: 2012-07-31
A55: 52 | C55: 绞肉机 | F55: 台 | G55: 1 | H55: 2012-07-31
A56: 合计 | G56: =SUM(G4:G55) -> 635

Sheet 广东春谭
A1: 机器设备清单
A2: 序号 | B2: 设备编号 | C2: 设备名称 | D2: 规格型号 | E2: 生产厂家 | F2: 计量单位 | G2: 数量 | H2: 购置日期 | I2: 备注
A4: 1 | C4: 龙门吊 | D4: 10T | F4: 台 | G4: 2 | H4: 2012-08-31
A5: 2 | C5: 交流电焊机 | F5: 台 | G5: 79 | H5: 2012-08-31
A6: 3 | C6: 二保电焊机 | F6: 台 | G6: 11 | H6: 2012-08-31
A7: 4 | C7: 卷板机 | D7: 15-25*2000 | F7: 台 | G7: 2 | H7: 2012-08-31
A8: 5 | C8: 卷扬机 | D8: 5T | F8: 台 | G8: 1 | H8: 2012-08-31
A9: 6 | C9: 水准仪 | F9: 台 | G9: 1 | H9: 2012-08-31
A10: 7 | C10: 探伤仪 | F10: 台 | G10: 4 | H10: 2012-08-31
A11: 8 | C11: 空压机 | D11: 63带杀罐，储气罐 | F11: 台 | G11: 1 | H11: 2012-08-31
A12: 9 | C12: 空压机 | F12: 台 | G12: 1 | H12: 2012-08-31
A13: 10 | C13: 储气罐 | F13: 台 | G13: 1 | H13: 2012-08-31
A14: 11 | C14: 扭剪扳手 | F14: 台 | G14: 1 | H14: 2012-08-31
A15: 12 | C15: 磁力钻 | F15: 台 | G15: 3 | H15: 2012-08-31
A16: 13 | C16: 电动扭力扳手 | F16: 台 | G16: 1 | H16: 2012-08-31
A17: 14 | C17: 液压弯管器 | F17: 台 | G17: 1 | H17: 2012-08-31
A18: 15 | C18: 液压千斤顶 | D18: 200t | F18: 台 | G18: 2 | H18: 2012-08-31
A19: 16 | C19: 机械千斤顶 | D19: 8T-32t | F19: 台 | G19: 16 | H19: 2012-08-31
A20: 17 | C20: 机械千斤顶 | D20: 50 | F20: 台 | G20: 3 | H20: 2012-08-31
A21: 18 | C21: 手拉葫芦 | D21: 20T | F21: 台 | G21: 1 | H21: 2012-08-31
A22: 19 | C22: 手拉葫芦 | D22: 10T | F22: 台 | G22: 3 | H22: 2012-08-31
A23: 20 | C23: 手拉葫芦 | D23: 1-3T | F23: 台 | G23: 38 | H23: 2012-08-31
A24: 21 | C24: 手拉葫芦 | D24: 5T | F24: 台 | G24: 11 | H24: 2012-08-31
A25: 22 | C25: 角磨机 | F25: 台 | G25: 28 | H25: 2012-08-31
A26: 23 | C26: 电锤 | F26: 台 | G26: 1 | H26: 2012-08-31
A27: 24 | C27: 框式水平仪 | F27: 台 | G27: 6 | H27: 2012-08-31
A28: 25 | C28: 条式水平仪 | F28: 台 | G28: 3 | H28: 2012-08-31
A29: 26 | C29: 电动导丝机 | D29: 1/2"-3" | F29: 台 | G29: 1 | H29: 2012-08-31
A30: 27 | C30: 半自动割刀 | F30: 台 | G30: 7 | H30: 2012-08-31
A31: 28 | C31: 送丝机头 | F31: 台 | G31: 2 | H31: 2012-08-31
A32: 29 | C32: 台式砂轮机 | F32: 台 | G32: 1 | H32: 2012-08-31
A33: 30 | C33: 电动扳手 | F33: 台 | G33: 2 | H33: 2012-08-31
A34: 31 | C34: 扭力扳手 | F34: 台 | G34: 2 | H34: 2012-08-31
A35: 32 | C35: 钢板夹 | F35: 台 | G35: 5 | H35: 2012-08-31
A36: 33 | C36: 龙门钳 | F36: 台 | G36: 1 | H36: 2012-08-31
A37: 34 | C37: 电磨 | F37: 台 | G37: 3 | H37: 2012-08-31
A38: 35 | C38: 切割机 | D38: 二相 | F38: 台 | G38: 2 | H38: 2012-08-31
A39: 36 | C39: 切割机 | D39: 三相 | F39: 台 | G39: 2 | H39: 2012-08-31
A40: 37 | C40: 切割机 | D40: 手提 | F40: 台 | G40: 1 | H40: 2012-08-31
A41: 38 | C41: 保险柜 | F41: 台 | G41: 1 | H41: 2012-08-31
A42: 合计 | G42: =SUM(G4:G41) -> 251

Sheet 四川康定
A1: 机器设备清单
A2: 序号 | B2: 设备编号 | C2: 设备名称 | D2: 规格型号 | E2: 生产厂家 | F2: 计量单位 | G2: 数量 | H2: 购置日期 | I2: 备注
A4: 1 | C4: 龙门吊 | D4: 10T | F4: 台 | G4: 1 | H4: 2013-01-31
A5: 2 | C5: 交流电焊机 | F5: 台 | G5: 41 | H5: 2013-01-31
A6: 3 | C6: 二保电焊机 | F6: 台 | G6: 7 | H6: 2013-01-31
A7: 4 | C7: 等离子焊机 | F7: 台 | G7: 2 | H7: 2013-01-31
A8: 5 | C8: 卷板机 | D8: 15-25*2000 | F8: 台 | G8: 1 | H8: 2013-01-31
A9: 6 | C9: 卷扬机 | D9: 5T | F9: 台 | G9: 2 | H9: 2013-01-31
A10: 7 | C10: 卷扬机 | D10: 1-3T | F10: 台 | G10: 1 | H10: 2013-01-31
A11: 8 | C11: 经纬仪 | F11: 台 | G11: 1 | H11: 2013-01-31
A12: 9 | C12: 水准仪 | F12: 台 | G12: 1 | H12: 2013-01-31
A13: 10 | C13: 空压机 | D13: 63带杀罐，储气罐 | F13: 台 | G13: 1 | H13: 2013-01-31
A14: 11 | C14: 空压机 | F14: 台 | G14: 3 | H14: 2013-01-31
A15: 12 | C15: 储气罐 | F15: 台 | G15: 1 | H15: 2013-01-31
A16: 13 | C16: 扭剪扳手 | F16: 台 | G16: 1 | H16: 2013-01-31
A17: 14 | C17: 磁力钻 | F17: 台 | G17: 2 | H17: 2013-01-31
A18: 15 | C18: 液压弯管器 | F18: 台 | G18: 1 | H18: 2013-01-31
A19: 16 | C19: 液压千斤顶 | D19: 100t | F19: 台 | G19: 2 | H19: 2013-01-31
A20: 17 | C20: 液压千斤顶 | D20: 8T-50T | F20: 台 | G20: 1 | H20: 2013-01-31
A21: 18 | C21: 机械千斤顶 | D21: 8T-32t | F21: 台 | G21: 16 | H21: 2013-01-31
A22: 19 | C22: 机械千斤顶 | D22: 50 | F22: 台 | G22: 6 | H22: 2013-01-31
A23: 20 | C23: 手拉葫芦 | D23: 20T | F23: 台 | G23: 2 | H23: 2013-01-31
A24: 21 | C24: 手拉葫芦 | D24: 10T | F24: 台 | G24: 4 | H24: 2013-01-31
A25: 22 | C25: 手拉葫芦 | D25: 1-3T | F25: 台 | G25: 36 | H25: 2013-01-31
A26: 23 | C26: 手拉葫芦 | D26: 5T | F26: 台 | G26: 26 | H26: 2013-01-31
A27: 24 | C27: 角磨机 | F27: 台 | G27: 22 | H27: 2013-01-31
A28: 25 | C28: 搅拌机 | F28: 台 | G28: 2 | H28: 2013-01-31
A29: 26 | C29: 电锤 | F29: 台 | G29: 2 | H29: 2013-01-31
A30: 27 | C30: 框式水平仪 | F30: 台 | G30: 4 | H30: 2013-01-31
A31: 28 | C31: 电动导丝机 | D31: 1/2"-3" | F31: 台 | G31: 1 | H31: 2013-01-31
A32: 29 | C32: 半自动割刀 | F32: 台 | G32: 2 | H32: 2013-01-31
A33: 30 | C33: 台式砂轮机 | F33: 台 | G33: 2 | H33: 2013-01-31
A34: 31 | C34: 电动扳手 | F34: 台 | G34: 7 | H34: 2013-01-31
A35: 32 | C35: 扭力扳手 | F35: 台 | G35: 1 | H35: 2013-01-31
A36: 33 | C36: 钢板夹 | F36: 台 | G36: 8 | H36: 2013-01-31
A37: 34 | C37: 配电柜 | F37: 台 | G37: 6 | H37: 2013-01-31
A38: 35 | C38: 切割机 | D38: 三相 | F38: 台 | G38: 2 | H38: 2013-01-31
A39: 36 | C39: 蒸饭器 | F39: 台 | G39: 1 | H39: 2013-01-31
A40: 37 | C40: 冰柜 | F40: 台 | G40: 1 | H40: 2013-01-31
A41: 合计 | G41: =SUM(G4:G40) -> 220

Sheet 辽宁辽塔
A1: 机器设备清单
A2: 序号 | B2: 设备编号 | C2: 设备名称 | D2: 规格型号 | E2: 生产厂家 | F2: 计量单位 | G2: 数量 | H2: 购置日期 | I2: 备注
A4: 1 | C4: 交流电焊机 | F4: 台 | G4: 15 | H4: 2013-11-30
A5: 2 | C5: 卷扬机 | D5: 1-3T | F5: 台 | G5: 1 | H5: 2013-11-30
A6: 3 | C6: 经纬仪 | F6: 台 | G6: 1 | H6: 2013-11-30
A7: 4 | C7: 水准仪 | F7: 台 | G7: 2 | H7: 2013-11-30
A8: 5 | C8: 空压机 | F8: 台 | G8: 1 | H8: 2013-11-30
A9: 6 | C9: 磁力钻 | F9: 台 | G9: 1 | H9: 2013-11-30
A10: 7 | C10: 液压千斤顶 | D10: 200T | F10: 台 | G10: 1 | H10: 2013-11-30
A11: 8 | C11: 机械千斤顶 | D11: 8T-32t | F11: 台 | G11: 11 | H11: 2013-11-30
A12: 9 | C12: 手拉葫芦 | D12: 10T | F12: 台 | G12: 2 | H12: 2013-11-30
A13: 10 | C13: 手拉葫芦 | D13: 1-3T | F13: 台 | G13: 21 | H13: 2013-11-30
A14: 11 | C14: 手拉葫芦 | D14: 5T | F14: 台 | G14: 21 | H14: 2013-11-30
A15: 12 | C15: 角磨机 | F15: 台 | G15: 5 | H15: 2013-11-30
A16: 13 | C16: 框式水平仪 | F16: 台 | G16: 4 | H16: 2013-11-30
A17: 14 | C17: 手电钻 | F17: 台 | G17: 2 | H17: 2013-11-30
A18: 15 | C18: 扭力扳手 | F18: 台 | G18: 1 | H18: 2013-11-30
A19: 16 | C19: 钢板夹 | F19: 台 | G19: 5 | H19: 2013-11-30
A20: 17 | C20: 配电柜 | F20: 台 | G20: 3 | H20: 2013-11-30
A21: 18 | C21: 电磨 | F21: 台 | G21: 1 | H21: 2013-11-30
A22: 19 | C22: 切割机 | D22: 二相 | F22: 台 | G22: 1 | H22: 2013-11-30
A23: 20 | C23: 切割机 | D23: 三相 | F23: 台 | G23: 1 | H23: 2013-11-30
A24: 21 | C24: 切割机 | D24: 手提 | F24: 台 | G24: 1 | H24: 2013-11-30
A25: 22 | C25: 保险柜 | F25: 台 | G25: 1 | H25: 2013-11-30
A26: 合计 | G26: =SUM(G4:G25) -> 102

Sheet 新疆东湖
A1: 机器设备清单
A2: 序号 | B2: 设备编号 | C2: 设备名称 | D2: 规格型号 | E2: 生产厂家 | F2: 计量单位 | G2: 数量 | H2: 购置日期 | I2: 备注
A4: 1 | C4: 交流电焊机 | F4: 台 | G4: 51 | H4: 2014-03-31
A5: 2 | C5: 卷板机 | D5: 15-25*2000 | F5: 台 | G5: 1 | H5: 2014-03-31
A6: 3 | C6: 卷扬机 | D6: 5T | F6: 台 | G6: 2 | H6: 2014-03-31
A7: 4 | C7: 经纬仪 | F7: 台 | G7: 1 | H7: 2014-03-31
A8: 5 | C8: 水准仪 | F8: 台 | G8: 1 | H8: 2014-03-31
A9: 6 | C9: 打码机 | F9: 台 | G9: 1 | H9: 2014-03-31
A10: 7 | C10: 液压弯管机 | F10: 台 | G10: 1 | H10: 2014-03-31
A11: 8 | C11: 机械千斤顶 | D11: 8T-32t | F11: 台 | G11: 9 | H11: 2014-03-31
A12: 9 | C12: 机械千斤顶 | D12: 50 | F12: 台 | G12: 2 | H12: 2014-03-31
A13: 10 | C13: 手拉葫芦 | D13: 10T | F13: 台 | G13: 2 | H13: 2014-03-31
A14: 11 | C14: 手拉葫芦 | D14: 1-3T | F14: 台 | G14: 15 | H14: 2014-03-31
A15: 12 | C15: 手拉葫芦 | D15: 5T | F15: 台 | G15: 13 | H15: 2014-03-31
A16: 13 | C16: 电锤 | F16: 台 | G16: 3 | H16: 2014-03-31
A17: 14 | C17: 框式水平仪 | F17: 台 | G17: 1 | H17: 2014-03-31
A18: 15 | C18: 条式水平仪 | F18: 台 | G18: 1 | H18: 2014-03-31
A19: 16 | C19: 电动导丝机 | F19: 台 | G19: 1 | H19: 2014-03-31
A20: 17 | C20: 手动扳丝机 | F20: 台 | G20: 1 | H20: 2014-03-31
A21: 18 | C21: 台式砂轮机 | F21: 台 | G21: 1 | H21: 2014-03-31
A22: 19 | C22: 扭力扳手 | F22: 台 | G22: 1 | H22: 2014-03-31
A23: 20 | C23: 钢板夹 | F23: 台 | G23: 3 | H23: 2014-03-31
A24: 21 | C24: 配电柜 | F24: 台 | G24: 9 | H24: 2014-03-31
A25: 22 | C25: 切割机 | D25: 三相 | F25: 台 | G25: 1 | H25: 2014-03-31
A26: 合计 | G26: =SUM(G4:G25) -> 121

Sheet 贵州忠诚
A1: 机器设备清单
A2: 序号 | B2: 设备编号 | C2: 设备名称 | D2: 规格型号 | E2: 生产厂家 | F2: 计量单位 | G2: 数量 | H2: 购置日期 | I2: 备注
A4: 1 | C4: 交流电焊机 | F4: 台 | G4: 23 | H4: 2015-04-30
A5: 2 | C5: 直流电焊机 | D5: 630 | F5: 台 | G5: 1 | H5: 2015-04-30
A6: 3 | C6: 二保电焊机 | F6: 台 | G6: 2 | H6: 2015-04-30
A7: 4 | C7: 卷板机 | D7: 15-25*2000 | F7: 台 | G7: 1 | H7: 2015-04-30
A8: 5 | C8: 卷扬机 | D8: 5T | F8: 台 | G8: 3 | H8: 2015-04-30
A9: 6 | C9: 卷扬机 | D9: 1-3T | F9: 台 | G9: 1 | H9: 2015-04-30
A10: 7 | C10: 空压机 | F10: 台 | G10: 1 | H10: 2015-04-30
A11: 8 | C11: 机械千斤顶 | D11: 8-32T | F11: 台 | G11: 8 | H11: 2015-04-30
A12: 9 | C12: 手拉葫芦 | D12: 1-3T | F12: 台 | G12: 5 | H12: 2015-04-30
A13: 10 | C13: 手拉葫芦 | D13: 5T | F13: 台 | G13: 20 | H13: 2015-04-30
A14: 11 | C14: 角磨机 | F14: 台 | G14: 4 | H14: 2015-04-30
A15: 12 | C15: 搅拌机 | F15: 台 | G15: 2 | H15: 2015-04-30
A16: 13 | C16: 钢板夹 | F16: 台 | G16: 2 | H16: 2015-04-30
A17: 14 | C17: 配电柜 | F17: 台 | G17: 10 | H17: 2015-04-30
A18: 15 | C18: 潜水泵 | F18: 台 | G18: 2 | H18: 2015-04-30
A19: 16 | C19: 切割机 | D19: 二相 | F19: 台 | G19: 1 | H19: 2015-04-30
A20: 17 | C20: 切割机 | D20: 三相 | F20: 台 | G20: 1 | H20: 2015-04-30
A21: 18 | C21: 蒸饭柜 | F21: 台 | G21: 1 | H21: 2015-04-30
A22: 合计 | G22: =SUM(G4:G21) -> 88

Sheet 湖北阳新娲石
A1: 机器设备清单
A2: 序号 | B2: 设备编号 | C2: 设备名称 | D2: 规格型号 | E2: 生产厂家 | F2: 计量单位 | G2: 数量 | H2: 购置日期 | I2: 备注
A4: 1 | C4: 交流电焊机 | F4: 台 | G4: 35 | H4: 2012-05-31
A5: 2 | C5: 卷扬机 | D5: 5T | F5: 台 | G5: 1 | H5: 2012-05-31
A6: 3 | C6: 卷扬机 | D6: 1-3T | F6: 台 | G6: 1 | H6: 2012-05-31
A7: 4 | C7: 经纬仪 | F7: 台 | G7: 1 | H7: 2012-05-31
A8: 5 | C8: 水准仪 | F8: 台 | G8: 1 | H8: 2012-05-31
A9: 6 | C9: 液压千斤顶 | D9: 8T-50T | F9: 台 | G9: 5 | H9: 2012-05-31
A10: 7 | C10: 机械千斤顶 | D10: 8T-32t | F10: 台 | G10: 8 | H10: 2012-05-31
A11: 8 | C11: 手拉葫芦 | D11: 10T | F11: 台 | G11: 2 | H11: 2012-05-31
A12: 9 | C12: 手拉葫芦 | D12: 1-3T | F12: 台 | G12: 30 | H12: 2012-05-31
A13: 10 | C13: 手拉葫芦 | D13: 5T | F13: 台 | G13: 17 | H13: 2012-05-31
A14: 11 | C14: 电锤 | F14: 台 | G14: 1 | H14: 2012-05-31
A15: 12 | C15: 框式水平仪 | F15: 台 | G15: 2 | H15: 2012-05-31
A16: 13 | C16: 配电柜 | F16: 台 | G16: 3 | H16: 2012-05-31
A17: 合计 | G17: =SUM(G4:G16) -> 107

Sheet 湖南印山
A1: 机器设备清单
A2: 序号 | B2: 设备编号 | C2: 设备名称 | D2: 规格型号 | E2: 生产厂家 | F2: 计量单位 | G2: 数量 | H2: 购置日期 | I2: 备注
A4: 1 | C4: 交流电焊机 | F4: 台 | G4: 18 | H4: 2009-9-31
A5: 2 | C5: 机械千斤顶 | D5: 8T-32t | F5: 台 | G5: 4 | H5: 2009-9-31
A6: 3 | C6: 手拉葫芦 | D6: 10T | F6: 台 | G6: 2 | H6: 2009-9-31
A7: 4 | C7: 手拉葫芦 | D7: 1-3T | F7: 台 | G7: 6 | H7: 2009-9-31
A8: 5 | C8: 手拉葫芦 | D8: 5T | F8: 台 | G8: 4 | H8: 2009-9-31
A9: 6 | C9: 角磨机 | F9: 台 | G9: 2 | H9: 2009-9-31
A10: 7 | C10: 配电柜 | F10: 台 | G10: 2 | H10: 2009-9-31
A11: 合计 | G11: =SUM(G4:G10) -> 38

Sheet 江西印山
A1: 机器设备清单
A2: 序号 | B2: 设备编号 | C2: 设备名称 | D2: 规格型号 | E2: 生产厂家 | F2: 计量单位 | G2: 数量 | H2: 购置日期 | I2: 备注
A4: 1 | C4: 龙门吊 | D4: 10T | F4: 台 | G4: 3 | H4: 2010-2-28
A5: 2 | C5: 卷板机 | D5: 15-25*2000 | F5: 台 | G5: 1 | H5: 2010-2-28
A6: 3 | C6: 卷扬机 | D6: 5T | F6: 台 | G6: 1 | H6: 2010-2-28
A7: 合计 | G7: =SUM(G4:G6) -> 5

Sheet 南方金属结构分公司
A1: 机器设备清单
A2: 序号 | B2: 设备编号 | C2: 设备名称 | D2: 规格型号 | E2: 生产厂家 | F2: 计量单位 | G2: 数量 | H2: 购置日期 | I2: 备注
A4: 1 | C4: 拉力器 | F4: 个 | G4: 1 | H4: 2009-04-30
A5: 2 | C5: 电动扳手（扭力） | F5: 个 | G5: 1 | H5: 2011-12-31
A6: 3 | C6: 坡口机 | F6: 台 | G6: 1 | H6: 2010-11-30
A7: 4 | C7: 焊条烘箱 | F7: 台 | G7: 1 | H7: 2011-12-31
A8: 5 | C8: 公丝器 | F8: 盒 | G8: 17 | H8: 2009-04-30
A9: 6 | C9: 手动公丝 | F9: 个 | G9: 16 | H9: 2010-11-30
A10: 7 | C10: 控制箱 | F10: 个 | G10: 3 | H10: 2011-12-31
A11: 8 | C11: 断线钳 | D11: 600 | F11: 个 | G11: 2 | H11: 2011-12-31
A12: 9 | C12: 铆钉枪 | F12: 个 | G12: 12 | H12: 2009-04-30
A13: 10 | C13: 玻璃抢 | F13: 个 | G13: 2 | H13: 2010-11-30
A14: 11 | C14: 订书机 | F14: 个 | G14: 1 | H14: 2011-12-31
A15: 12 | C15: 磁力表座 | F15: 个 | G15: 8 | H15: 2011-12-31
A16: 13 | C16: 打气泵 | F16: 个 | G16: 1 | H16: 2011-12-31
A17: 14 | C17: 打气筒 | F17: 把 | G17: 5 | H17: 2009-04-30
A18: 15 | C18: 管子钳 | D18: 900 | F18: 个 | G18: 3 | H18: 2010-11-30
A19: 16 | C19: 管子钳 | D19: 600 | F19: 个 | G19: 5 | H19: 2010-01-31
A20: 17 | C20: 管子钳 | D20: 450 | F20: 个 | G20: 2 | H20: 2010-11-30
A21: 18 | C21: 管子钳 | D21: 300 | F21: 个 | G21: 2 | H21: 2010-01-31
A22: 19 | C22: 手动套丝器 | F22: 个 | G22: 6 | H22: 2010-01-31
A23: 20 | C23: 手动管制割刀 | F23: 个 | G23: 10 | H23: 2010-01-31
A24: 21 | C24: 焊条保温桶 | F24: 个 | G24: 5 | H24: 2010-01-31
A25: 22 | C25: 油漆喷枪 | F25: 个 | G25: 1 | H25: 2010-11-30
A26: 23 | C26: 手动弯管器 | F26: 套 | G26: 14 | H26: 2011-12-31
A27: 24 | C27: 半自动割刀 | F27: 把 | G27: 1 | H27: 2010-01-31
A28: 25 | C28: 扭力扳手 | F28: 把 | G28: 16 | H28: 2010-01-31
A29: 26 | C29: 电动振动器 | F29: 台 | G29: 1 | H29: 2009-04-30
A30: 27 | C30: 经纬仪脚架 | F30: 个 | G30: 15 | H30: 2010-01-31
A31: 28 | C31: 进口电器设备 | F31: 台 | G31: 1 | H31: 2010-01-31
A32: 29 | C32: 潜水泵 | F32: 台 | G32: 1 | H32: 2009-04-30
A33: 30 | C33: 龙门吊开关 | F33: 套 | G33: 1 | H33: 2011-12-31
A34: 31 | C34: 磁力表座 | F34: 个 | G34: 44 | H34: 2010-01-31
A35: 32 | C35: 电动工具 | F35: 个 | G35: 21 | H35: 2010-11-30
A36: 33 | C36: 扩孔器 | F36: 个 | G36: 8 | H36: 2010-01-31
A37: 34 | C37: 测温仪 | F37: 个 | G37: 1 | H37: 2009-04-30
A38: 35 | C38: 压力表 | F38: 只 | G38: 4 | H38: 2010-01-31
A39: 36 | C39: 直流电位差力计 | F39: 台 | G39: 1 | H39: 2010-01-31
A40: 37 | C40: 全自动交流稳压台 | F40: 台 | G40: 1 | H40: 2010-01-31
A41: 38 | C41: 速度控制器 | F41: 台 | G41: 20 | H41: 2010-11-30
A42: 39 | C42: 直流焊机 | D42: 400 | F42: 台 | G42: 1 | H42: 2010-01-31
A43: 40 | C43: 磁力表 | F43: 个 | G43: 20 | H43: 2010-11-30
A44: 41 | C44: 漏电断路器 | D44: 100A | F44: 台 | G44: 3 | H44: 2010-01-31
A45: 42 | C45: 电流互感器 | F45: 台 | G45: 4 | H45: 2009-04-30
A46: 43 | C46: 漏电断路器 | D46: 250A | F46: 台 | G46: 3 | H46: 2010-01-31
A47: 44 | C47: 交流接触器 | F47: 台 | G47: 21 | H47: 2010-11-30
A48: 45 | C48: 电表 | F48: 个 | G48: 6 | H48: 2010-01-31
A49: 46 | C49: 电动操控器 | F49: 个 | G49: 8 | H49: 2011-12-31
A50: 47 | C50: 电子显示器 | F50: 个 | G50: 5 | H50: 2010-01-31
A51: 48 | C51: 镝灯出法强 | F51: 个 | G51: 5 | H51: 2009-04-30
A52: 49 | C52: 龙门标遥控器 | F52: 套 | G52: 2 | H52: 2010-01-31
A53: 50 | C53: 起重线纬器 | F53: 台 | G53: 2 | H53: 2010-01-31
A54: 51 | C54: 电器互感器 | F54: 个 | G54: 41 | H54: 2010-01-31
A55: 52 | C55: 真空泵 | F55: 台 | G55: 1 | H55: 2010-01-31
A56: 53 | C56: 焊机保护器 | F56: 台 | G56: 42 | H56: 2010-01-31
A57: 54 | C57: 经纬仪激光 | F57: 台 | G57: 1 | H57: 2009-04-30
A58: 55 | C58: 热割过载继电器 | F58: 个 | G58: 3 | H58: 2010-01-31
A59: 56 | C59: 位置定位器 | F59: 台 | G59: 1 | H59: 2010-01-31
A60: 57 | C60: 伺服放大器 | F60: 台 | G60: 10 | H60: 2010-01-31
A61: 58 | C61: 断路器 | D61: 100 | F61: 台 | G61: 1 | H61: 2010-11-30
A62: 59 | C62: 可控硅电磁振动割辽机 | F62: 台 | G62: 1 | H62: 2011-12-31
A63: 60 | C63: 电动玻璃升降器 | F63: 个 | G63: 1 | H63: 2010-01-31
A64: 61 | C64: 多露温度座器 | F64: 台 | G64: 5 | H64: 2009-04-30
A65: 62 | C65: 电动切割机 | F65: 台 | G65: 4 | H65: 2010-01-31
A66: 63 | C66: 保焊枪 | F66: 把 | G66: 2 | H66: 2010-01-31
A67: 64 | C67: 等离子切割枪 | F67: 把 | G67: 2 | H67: 2010-01-31
A68: 65 | C68: 埋弧焊枪 | F68: 把 | G68: 1 | H68: 2010-11-30
A69: 66 | C69: 电控箱 | F69: 个 | G69: 1 | H69: 2010-01-31
A70: 67 | C70: 钳形表电流表 | F70: 个 | G70: 1 | H70: 2009-04-30
A71: 68 | C71: 供氧化碳表 | F71: 个 | G71: 11 | H71: 2010-01-31
A72: 69 | C72: 液化气表 | F72: 个 | G72: 6 | H72: 2010-01-31
A73: 70 | C73: 多功能调压器 | F73: 台 | G73: 1 | H73: 2009-04-30
A74: 71 | C74: 液压钳 | F74: 个 | G74: 42 | H74: 2010-01-31
A75: 72 | C75: 汽油发电机 | F75: 台 | G75: 1 | H75: 2009-04-30
A76: 73 | C76: 液压千斤顶 | D76: 50吨 | F76: 个 | G76: 4 | H76: 2010-01-31
A77: 74 | C77: 液压千斤顶 | D77: 32吨 | F77: 个 | G77: 7 | H77: 2009-04-30
A78: 75 | C78: 液压千斤顶 | D78: 8吨 | F78: 个 | G78: 4 | H78: 2010-11-30
A79: 76 | C79: 机械千斤顶 | D79: 50吨 | F79: 个 | G79: 4 | H79: 2010-01-31
A80: 77 | C80: 机械千斤顶 | D80: 20吨 | F80: 个 | G80: 2 | H80: 2010-01-31
A81: 78 | C81: 机械千斤顶 | D81: 16吨 | F81: 个 | G81: 17 | H81: 2010-01-31
A82: 79 | C82: 机械千斤顶 | D82: 10吨 | F82: 个 | G82: 2 | H82: 2010-11-30
A83: 80 | C83: 鼓风机 | F83: 个 | G83: 1 | H83: 2009-04-30
A84: 81 | C84: 半自动割刀 | F84: 个 | G84: 16 | H84: 2009-04-30
A85: 82 | C85: 电控柜 | F85: 台 | G85: 1 | H85: 2009-04-30
A86: 83 | C86: 镝灯 | F86: 台 | G86: 18 | H86: 2010-01-31
A87: 84 | C87: 台钻 | F87: 台 | G87: 1 | H87: 2010-01-31
A88: 85 | C88: 保险柜 | F88: 个 | G88: 6 | H88: 2010-11-30
A89: 86 | C89: 冰柜 | F89: 个 | G89: 5 | H89: 2010-11-30
A90: 87 | C90: 蒸饭车 | F90: 个 | G90: 2 | H90: 2011-12-31
A91: 88 | C91: 电饭煲 | F91: 个 | G91: 5 | H91: 2010-01-31
A92: 89 | C92: 配电箱 | F92: 台 | G92: 1 | H92: 2010-01-31
A93: 90 | C93: 灭火器 | F93: 个 | G93: 15 | H93: 2009-04-30
A94: 91 | C94: 配电柜 | F94: 个 | G94: 5 | H94: 2010-01-31
A95: 92 | C95: 喷气机 | F95: 台 | G95: 1 | H95: 2010-01-31
A96: 93 | C96: 大配电柜 | F96: 台 | G96: 2 | H96: 2010-01-31
A97: 94 | C97: 10吨龙门吊 | F97: 套 | G97: 5 | H97: 2009-04-30
A98: 95 | C98: 10吨龙门吊 | F98: 套 | G98: 3 | H98: 2010-11-30
A99: 96 | C99: 5吨龙门吊 | F99: 套 | G99: 2 | H99: 2010-11-30
A100: 97 | C100: 手推车 | F100: 个 | G100: 2 | H100: 2010-01-31
A101: 98 | C101: 轨道 | F101: 米 | G101: 200 | H101: 2009-04-30
A102: 99 | C102: 伙食团水箱 | F102: 个 | G102: 1 | H102: 2010-01-31
A103: 100 | C103: 食堂冰柜 | F103: 个 | G103: 1 | H103: 2010-01-31
A104: 101 | C104: 除草机 | F104: 个 | G104: 1 | H104: 2009-04-30
A105: 102 | C105: 液压泵 | F105: 个 | G105: 1 | H105: 2010-01-31
A106: 103 | C106: 磁力电钻 | F106: 个 | G106: 4 | H106: 2009-04-30
A107: 104 | C107: 水准仪 | F107: 台 | G107: 28 | H107: 2010-01-31
A108: 105 | C108: 经纬仪 | F108: 台 | G108: 10 | H108: 2010-11-30
A109: 106 | C109: 探伤仪 | F109: 台 | G109: 3 | H109: 2010-01-31
A110: 107 | C110: 打码仪 | F110: 台 | G110: 3 | H110: 2012-05-31
A111: 108 | C111: 测振仪 | F111: 台 | G111: 1 | H111: 2011-12-31
A112: 合计 | G112: =SUM(G4:G111) -> 898

Sheet 车辆
A1: 固定资产——车辆评估明细表
A2: =#REF! -> 
P3: 表4-6-5
A4: =#REF! ->  | P4: 金额单位：人民币元
A5: 序号 | B5: 车辆牌号 | C5: 车辆名称规格型号 | D5: 生产厂家 | E5: 计量单位 | F5: 数量 | G5: 购置日期 | H5: 启用日期 | I5: 已行驶里程(公里) | J5: 帐 面 价 值 | L5: 评 估 价 值 | O5: 增值率% | P5: 备注
J6: 原值 | K6: 净值 | L6: 原值 | M6: 成新率 | N6: 净值
A7: 1 | B7: 桑塔纳轿车（川BR9388） | C7: 桑塔纳轿车SVW7180LED | E7: 辆 | F7: 1 | G7: 2009-06-01 | J7: 71,641.00 | O7: =IF(K7=0,,(N7-K7)/K7) -> 0.0% | P7: 绵阳车管所查存在。状态：查封。已抵给李龙飞工资，属于报废车。有协议，企业未下账。
A8: 2 | B8: 长城皮卡车（川BP5581） | C8: 长城CC1027SSD43 | D8: 长城 | E8: 辆 | F8: 1 | G8: 2009-11-01 | J8: 74,905.00 | L8: 75,000.00 | M8: 5% | N8: =L8*M8 -> 3,750.00 | O8: 0.0% | P8: 绵阳车管所查存在。状态：查封、违法未处理，逾期未检验。属于报废车。
A9: 3 | B9: 东方日产牌轿车（萧克川BEC830） | C9: DFL6430MBC1 | D9: 河南 | E9: 辆 | F9: 1 | G9: 2011-08-01 | J9: 150,000.00 | K9: 75,000.00 | L9: 112,800.00 | M9: 35% | N9: =L9*M9 -> 39,480.00 | O9: -47.4% | P9: 绵阳车管所查存在。状态：查封、违法未处理。可以使用。
A10: 4 | B10: 轻型货车（川BFF951） | C10: 长城皮卡CC1031PS4D | D10: 保定 | E10: 辆 | F10: 1 | G10: 2011-11-29 | J10: 73,800.00 | K10: 36,900.00 | L10: 75,000.00 | M10: 15% | N10: =L10*M10 -> 11,250.00 | O10: -69.5% | P10: 存放于广东南雄工地，可以使用。
A11: 5 | B11: 轻型货车 | C11: 长城皮卡CC1031PS4D | D11: 保定 | E11: 辆 | F11: 1 | G11: 2012-01-19 | J11: 74,800.00 | K11: 37,400.00 | L11: 75,000.00 | M11: 20% | N11: =L11*M11 -> 15,000.00 | O11: -59.9% | P11: 存在，可以使用。
A12: 6 | B12: 奔驰轿车（原蒙MA7373，现川BDD558)） | C12: 奔驰梅赛德斯WDDHF5EB(E300型轿车） | E12: 辆 | F12: 1 | G12: 2010-04-14 | J12: 750,000.00 | K12: 37,500.00 | O12: -100.0% | P12: 绵阳车管所查存在。状态：查封、违法未处理。已抵给向德文，有判决书，企业未下账。
A13: 7 | B13: 奥迪A6轿车（鲁J-HG177） | C13: FV7321CVT | E13: 辆 | F13: 1 | G13: 2014-01-31 | J13: 500,000.00 | K13: 207,700.00 | O13: -100.0% | P13: 在黎凡处，称黎凡已经卖了，未将车款交回公司。
A14: 8 | B14: 尼桑（京PTU158） | C14: 日本原产尼桑风度2.0 | E14: 辆 | F14: 1 | G14: 2014-04-30 | J14: 200,000.00 | K14: 92,560.00 | O14: -100.0% | P14: 已抵给水公司，未见抵车协议，企业未下账。
A15: 9 | B15: 大众迈腾轿车（宁EF2772） | C15: 大众FV7187TFATG | E15: 辆 | F15: 1 | G15: 2015-10-31 | J15: 340,000.00 | K15: 254,048.00 | O15: -100.0% | P15: 已抵给钢材公司，未见抵车协议，企业未下账。
A16: 10 | B16: 宝马轿车（宁ASJ685） | C16: 宝马 | E16: 辆 | F16: 1 | G16: 2015-10-31 | J16: 690,000.00 | K16: 515,568.00 | O16: -100.0% | P16: 已抵给钢材公司，未见抵车协议，企业未下账。
A17: 11 | B17: 奥迪Q5轿车（湘H9NF02） | C17: 奥迪Q52.0T,FV6461ATG | E17: 辆 | F17: 1 | G17: 2016-08-31 | J17: 380,000.00 | K17: 343,976.00 | O17: -100.0% | P17: 黎盛在用，又抵给张建军，未见抵车协议，企业未下账。
A18: 合 计 | J18: =SUM(J7:J17) -> 3,305,146.00 | K18: =SUM(K7:K17) -> 1,600,652.00 | L18: =SUM(L7:L17) -> 337,800.00 | N18: =SUM(N7:N17) -> 69,480.00 | O18: -95.7%
A19: 减:车辆减值准备 | O19: 0.0%
A20: 合 计 | J20: =J18-J19 -> 3,305,146.00 | K20: =K18-K19 -> 1,600,652.00 | L20: =L18-L19 -> 337,800.00 | N20: =N18-N19 -> 69,480.00 | O20: -95.7%
A21: =#REF! ->  | L21: =机器设备!L444 ->  | O21: =#REF! -> 
A22: =#REF! -> 

Sheet 电子设备
A1: 固定资产——电子设备评估明细表
A2: =#REF! -> 
P3: 表4-6-6
A4: =#REF! ->  | P4: 金额单位：人民币元
A5: 序号 | B5: 设备编号 | C5: 设备名称 | D5: 规格型号 | E5: 生产厂家 | F5: 计量单位 | G5: 数量 | H5: 购置日期 | I5: 启用日期 | J5: 帐 面 价 值 | L5: 评 估 价 值 | O5: 增值率% | P5: 备注
J6: 原值 | K6: 净值 | L6: 原值 | M6: 成新率 | N6: 净值
A7: 1 | C7: 挂式空调 | D7: 小天鹅1P | F7: 台 | G7: 1 | H7: 2013-11-30 | L7: 760.00 | M7: 60% | N7: =L7*M7 -> 456.00 | O7: =IF(K7=0,,(N7-K7)/K7) -> 0.0% | P7: 门岗 | Q7: 760.00 | R7: =G7*Q7 -> 760.00
A8: 2 | C8: 电脑 | F8: 套 | G8: 1 | H8: 2015-06-30 | L8: 2,300.00 | M8: 30% | N8: =L8*M8 -> 690.00 | O8: 0.0% | P8: 门岗 | Q8: 2,300.00 | R8: =G8*Q8 -> 2,300.00
A9: 3 | C9: 监控设备 | F9: 套 | G9: 1 | H9: 2014-03-31 | L9: 13,000.00 | M9: 30% | N9: 3,900.00 | O9: 0.0% | P9: 门岗 | Q9: 13,000.00 | R9: 13,000.00
A10: 4 | C10: 电视 | D10: 长虹 | F10: 台 | G10: 1 | H10: 2014-03-31 | L10: 532.00 | M10: 40% | N10: 212.80 | O10: 0.0% | P10: 门岗 | Q10: 532.00 | R10: 532.00
A11: 5 | C11: 饮水机 | F11: 台 | G11: 1 | H11: 2014-03-31 | L11: 100.00 | M11: 40% | N11: 40.00 | O11: 0.0% | P11: 门岗 | Q11: 100.00 | R11: 100.00
A12: 6 | C12: 大门联动开关 | F12: 套 | G12: 1 | H12: 2010-01-30 | L12: 236.00 | M12: 30% | N12: 70.80 | O12: 0.0% | P12: 门岗 | Q12: 236.00 | R12: 236.00
A13: 7 | C13: 显示器 | D13: 废品，长虹 | F13: 台 | G13: 2 | H13: 2010-01-30 | L13: 472.00 | N13: 0.00 | O13: 0.0% | P13: 门岗 | Q13: 236.00 | R13: 472.00
A14: 8 | C14: 冰柜 | F14: 台 | G14: 1 | H14: 2010-01-30 | L14: 1,100.00 | M14: 15% | N14: 165.00 | O14: 0.0% | P14: 食堂 | Q14: 1,100.00 | R14: 1,100.00
A15: 9 | C15: 电视 | D15: 长虹 | F15: 台 | G15: 1 | H15: 2010-01-30 | L15: 500.00 | M15: 15% | N15: 75.00 | O15: 0.0% | P15: 员工寝室 | Q15: 500.00 | R15: 500.00
A16: 10 | C16: 热水器 | D16: 樱雪 | F16: 台 | G16: 1 | H16: 2010-01-30 | L16: 170.00 | M16: 15% | N16: 25.50 | O16: 0.0% | P16: 员工寝室 | Q16: 170.00 | R16: 170.00
A17: 11 | C17: 饮水机 | F17: 台 | G17: 1 | H17: 2010-01-30 | L17: 100.00 | M17: 15% | N17: 15.00 | O17: 0.0% | P17: 市场营销部 | Q17: 100.00 | R17: 100.00
A18: 12 | C18: 电脑 | F18: 套 | G18: 1 | H18: 2013-11-30 | L18: 2,450.00 | M18: 15% | N18: 367.50 | O18: 0.0% | P18: 市场营销部 | Q18: 2,450.00 | R18: 2,450.00
A19: 13 | C19: 打印机 | D19: HPLJ pro400 | F19: 台 | G19: 1 | H19: 2013-11-30 | L19: 2,400.00 | M19: 20% | N19: 480.00 | O19: 0.0% | P19: 市场营销部 | Q19: 2,400.00 | R19: 2,400.00
A20: 14 | C20: 碎纸机 | F20: 台 | G20: 1 | H20: 2013-11-30 | L20: 309.00 | M20: 20% | N20: 61.80 | O20: 0.0% | P20: 市场营销部 | Q20: 309.00 | R20: 309.00
A21: 15 | C21: 打印机 | D21: SHARP AR-2048S | F21: 台 | G21: 1 | H21: 2014-03-31 | L21: 2,900.00 | M21: 30% | N21: 870.00 | O21: 0.0% | P21: 工程部 | Q21: 2,900.00 | R21: 2,900.00
A22: 16 | C22: 挂式空调（旧） | D22: 夏普 | F22: 台 | G22: 1 | H22: 2014-03-31 | L22: 4,560.00 | M22: 60% | N22: =L22*M22 -> 2,736.00 | O22: =IF(K22=0,,(N22-K22)/K22) -> 0.0% | P22: 工程部 | Q22: 4,560.00 | R22: 4,560.00
A23: 17 | C23: 饮水机 | D23: 美菱 | F23: 台 | G23: 1 | H23: 2013-11-30 | L23: 219.00 | M23: 30% | N23: 65.70 | O23: 0.0% | P23: 工程部 | Q23: 219.00 | R23: 219.00
A24: 18 | C24: 电脑 | D24: 清华同方 | F24: 套 | G24: 1 | H24: 2015-06-30 | L24: 1,860.00 | M24: 40% | N24: 744.00 | O24: 0.0% | P24: 工程部 | Q24: 1,860.00 | R24: 1,860.00
A25: 19 | C25: 打印机（废品） | D25: 夏普AR282NA | F25: 台 | G25: 1 | H25: 2010-01-30 | L25: 2,350.00 | M25: 15% | N25: 352.50 | O25: 0.0% | P25: 压力管道安装管理部 | Q25: 2,350.00 | R25: 2,350.00
A26: 20 | C26: 挂式空调（旧） | D26: 夏普 | F26: 台 | G26: 1 | H26: 2014-03-31 | L26: 4,560.00 | M26: 60% | N26: 2,736.00 | O26: 0.0% | P26: 党群工作部稽核处 | Q26: 4,560.00 | R26: 4,560.00
A27: 21 | C27: 保险柜 | D27: 偃师市云关金柜厂 | F27: 个 | G27: 1 | H27: 2013-11-30 | L27: 850.00 | M27: 15% | N27: 127.50 | O27: 0.0% | P27: 党群工作部稽核处 | Q27: 850.00 | R27: 850.00
A28: 22 | C28: 饮水机 | F28: 台 | G28: 1 | H28: 2010-01-30 | L28: 100.00 | M28: 15% | N28: 15.00 | O28: 0.0% | P28: 党群工作部稽核处 | Q28: 100.00 | R28: 100.00
A29: 23 | C29: 饮水机（废品） | F29: 台 | G29: 3 | H29: 2010-01-30 | L29: 300.00 | N29: 0.00 | O29: 0.0% | P29: 联络室 | Q29: 100.00 | R29: 300.00
A30: 24 | C30: 传真机（废品） | F30: 台 | G30: 1 | H30: 2010-01-30 | L30: 448.00 | N30: 0.00 | O30: 0.0% | P30: 联络室 | Q30: 448.00 | R30: 448.00
A31: 25 | C31: 显示器（废品） | F31: 台 | G31: 1 | H31: 2010-01-30 | L31: 213.00 | N31: 0.00 | O31: 0.0% | P31: 联络室 | Q31: 213.00 | R31: 213.00
A32: 26 | C32: 传真机 | D32: photar | F32: 台 | G32: 1 | H32: 2010-01-30 | L32: 690.00 | M32: 15% | N32: 103.50 | O32: 0.0% | P32: 行政人力资源部 | Q32: 690.00 | R32: 690.00
A33: 27 | C33: 电脑 | F33: 套 | G33: 2 | H33: 2010-01-30 | L33: 4,600.00 | M33: 5% | N33: 230.00 | O33: 0.0% | P33: 行政人力资源部 | Q33: 2,300.00 | R33: 4,600.00
A34: 28 | C34: 保险柜（小） | D34: 宝塔 | F34: 个 | G34: 1 | H34: 2010-01-30 | L34: 888.00 | M34: 15% | N34: 133.20 | O34: 0.0% | P34: 行政人力资源部 | Q34: 888.00 | R34: 888.00
A35: 29 | C35: 保险柜（小） | D35: 君宝 | F35: 个 | G35: 1 | H35: 2010-01-30 | L35: 598.00 | M35: 15% | N35: 89.70 | O35: 0.0% | P35: 行政人力资源部 | Q35: 598.00 | R35: 598.00
A36: 30 | C36: 保险柜（大） | D36: 君宝 | F36: 个 | G36: 1 | H36: 2010-01-30 | L36: 1,099.00 | M36: 15% | N36: 164.85 | O36: 0.0% | P36: 行政人力资源部 | Q36: 1,099.00 | R36: 1,099.00
A37: 31 | C37: 监控主机 | D37: fast fs16 | F37: 台 | G37: 1 | H37: 2013-11-30 | L37: 149.00 | M37: 15% | N37: 22.35 | O37: 0.0% | P37: 行政人力资源部 | Q37: 149.00 | R37: 149.00
A38: 32 | C38: 监控主机 | D38: fast fs24 | F38: 台 | G38: 1 | H38: 2013-11-30 | L38: 190.00 | M38: 15% | N38: 28.50 | O38: 0.0% | P38: 行政人力资源部 | Q38: 190.00 | R38: 190.00
A39: 33 | C39: 监控主机 | D39: KKD | F39: 台 | G39: 1 | H39: 2013-11-30 | L39: 2,200.00 | M39: 15% | N39: 330.00 | O39: 0.0% | P39: 行政人力资源部 | Q39: 2,200.00 | R39: 2,200.00
A40: 34 | C40: 饮水机 | F40: 台 | G40: 1 | H40: 2015-06-30 | L40: 100.00 | M40: 60% | N40: 60.00 | O40: 0.0% | P40: 安技处 | Q40: 100.00 | R40: =G40*Q40 -> 100.00
A41: 35 | C41: 打印机 | D41: HPLJ1022 | F41: 台 | G41: 1 | H41: 2015-06-30 | L41: 1,850.00 | M41: 50% | N41: 925.00 | O41: 0.0% | P41: 安技处 | Q41: 1,850.00 | R41: 1,850.00
A42: 36 | C42: 柜式空调 | D42: 海信 | F42: 台 | G42: 1 | H42: 2014-03-31 | L42: 800.00 | M42: 60% | N42: 480.00 | O42: 0.0% | P42: 会议室 | Q42: 800.00 | R42: 800.00
A43: 37 | C43: 柜式空调（旧） | D43: 长虹2002年 | F43: 台 | G43: 2 | H43: 2014-03-31 | L43: 1,040.00 | M43: 15% | N43: 156.00 | O43: 0.0% | P43: 会议室 | Q43: 520.00 | R43: 1,040.00
A44: 38 | C44: 投影设备 | F44: 套 | G44: 1 | H44: 2014-03-31 | L44: 6,800.00 | M44: 30% | N44: 2,040.00 | O44: 0.0% | P44: 会议室 | Q44: 6,800.00 | R44: 6,800.00
A45: 39 | C45: 音响设备 | D45: 奥斯曼，VAM(M7060)，RAGAO，音箱两台 | F45: 套 | G45: 1 | H45: 2010-01-30 | L45: 4,800.00 | M45: 5% | N45: 240.00 | O45: 0.0% | P45: 会议室 | Q45: 4,800.00 | R45: 4,800.00
A46: 40 | C46: 挂式空调（旧） | D46: 夏普 | F46: 台 | G46: 1 | H46: 2013-11-30 | L46: 4,560.00 | M46: 30% | N46: 1,368.00 | O46: 0.0% | P46: 董事长办公室 | Q46: 4,560.00 | R46: 4,560.00
A47: 41 | C47: 柜式空调 | D47: 海信 | F47: 台 | G47: 1 | H47: 2013-11-30 | L47: 3,800.00 | M47: 50% | N47: 1,900.00 | O47: 0.0% | P47: 董事长办公室 | Q47: 3,800.00 | R47: 3,800.00
A48: 42 | C48: 电脑 | D48: LG,联想 | F48: 套 | G48: 1 | H48: 2013-11-30 | L48: 2,650.00 | M48: 15% | N48: 397.50 | O48: 0.0% | P48: 董事长办公室 | Q48: 2,650.00 | R48: 2,650.00
A49: 43 | C49: 保险柜 | D49: 盾牌 | F49: 个 | G49: 1 | H49: 2013-11-30 | L49: 498.00 | M49: 15% | N49: 74.70 | O49: 0.0% | P49: 董事长办公室 | Q49: 498.00 | R49: 498.00
A50: 44 | C50: 电视机 | D50: 长虹 | F50: 台 | G50: 1 | H50: 2015-06-30 | L50: 1,020.00 | M50: 50% | N50: 510.00 | O50: 0.0% | P50: 董事长办公室 | Q50: 1,020.00 | R50: 1,020.00
A51: 45 | C51: 挂式空调（旧） | F51: 台 | G51: 1 | H51: 2015-06-30 | L51: 2,499.00 | M51: 60% | N51: 1,499.40 | O51: 0.0% | P51: 总经理办公室 | Q51: 2,499.00 | R51: 2,499.00
A52: 46 | C52: 挂式空调（旧） | D52: 美的 | F52: 台 | G52: 1 | H52: 2015-06-30 | L52: 2,499.00 | M52: 60% | N52: 1,499.40 | O52: 0.0% | P52: 总会计师 | Q52: 2,499.00 | R52: 2,499.00
A53: 47 | C53: 饮水机 | D53: 安吉尔 | F53: 台 | G53: 1 | H53: 2014-03-31 | L53: 325.00 | M53: 15% | N53: 48.75 | O53: 0.0% | P53: 总会计师 | Q53: 325.00 | R53: 325.00
A54: 48 | C54: 打印机 | D54: 得实AR-500 | F54: 台 | G54: 1 | H54: 2013-11-30 | L54: 5,000.00 | M54: 20% | N54: =L54*M54 -> 1,000.00 | O54: =IF(K54=0,,(N54-K54)/K54) -> 0.0% | P54: 财务成本室 | Q54: 5,000.00 | R54: 5,000.00
A55: 49 | C55: 打印机 | D55: 联想dp500 | F55: 台 | G55: 1 | H55: 2013-11-30 | L55: 1,990.00 | M55: 20% | N55: 398.00 | O55: 0.0% | P55: 财务成本室 | Q55: 1,990.00 | R55: 1,990.00
A56: 50 | C56: 扫描仪 | D56: 虹光fb2600c | F56: 台 | G56: 1 | H56: 2010-01-30 | L56: 1,199.00 | M56: 20% | N56: 239.80 | O56: 0.0% | P56: 财务成本室 | Q56: 1,199.00 | R56: 1,199.00
A57: 51 | C57: 电脑 | F57: 套 | G57: 1 | H57: 2014-03-31 | L57: 2,300.00 | M57: 20% | N57: 460.00 | O57: 0.0% | P57: 财务成本室 | Q57: 2,300.00 | R57: 2,300.00
A58: 52 | C58: 饮水机 | F58: 台 | G58: 1 | H58: 2010-01-30 | L58: 100.00 | M58: 15% | N58: 15.00 | O58: 0.0% | P58: 财务成本室 | Q58: 100.00 | R58: 100.00
A59: 53 | C59: 柜式空调 | D59: LG | F59: 台 | G59: 1 | H59: 2014-03-31 | L59: 3,050.00 | M59: 60% | N59: 1,830.00 | O59: 0.0% | P59: 财务处 | Q59: 3,050.00 | R59: 3,050.00
A60: 54 | C60: 电脑 | F60: 套 | G60: 3 | H60: 2014-03-31 | L60: 6,900.00 | M60: 30% | N60: 2,070.00 | O60: 0.0% | P60: 财务处 | Q60: 2,300.00 | R60: 6,900.00
A61: 55 | C61: 装订机 | F61: 台 | G61: 3 | H61: 2015-06-30 | L61: 735.00 | M61: 60% | N61: 441.00 | O61: 0.0% | P61: 财务处 | Q61: 245.00 | R61: 735.00
A62: 56 | C62: 饮水机 | F62: 台 | G62: 1 | H62: 2015-06-30 | L62: 100.00 | M62: 50% | N62: 50.00 | O62: 0.0% | P62: 财务处 | Q62: 100.00 | R62: 100.00
A63: 57 | C63: 点钞机 | D63: 康忆 | F63: 台 | G63: 1 | H63: 2014-03-31 | L63: 350.00 | M63: 20% | N63: 70.00 | O63: 0.0% | P63: 财务处 | Q63: 350.00 | R63: 350.00
A64: 58 | C64: 打印机 | D64: hplj M1005 mfp | F64: 台 | G64: 1 | H64: 2013-11-30 | L64: 1,851.00 | M64: 20% | N64: 370.20 | O64: 0.0% | P64: 财务处 | Q64: 1,851.00 | R64: 1,851.00
A65: 59 | C65: 打印机 | D65: hplj 1020 plus | F65: 台 | G65: 1 | H65: 2013-11-30 | L65: 1,479.00 | M65: 20% | N65: 295.80 | O65: 0.0% | P65: 财务处 | Q65: 1,479.00 | R65: 1,479.00
A66: 60 | C66: 打印机 | D66: hplj cp1025 color | F66: 台 | G66: 1 | H66: 2013-11-30 | L66: 1,859.00 | M66: 20% | N66: 371.80 | O66: 0.0% | P66: 财务处 | Q66: 1,859.00 | R66: 1,859.00
A67: 61 | C67: 打印机 | D67: Xerox phaser 3117 | F67: 台 | G67: 1 | H67: 2013-11-30 | L67: 1,859.00 | M67: 20% | N67: 371.80 | O67: 0.0% | P67: 财务处 | Q67: 1,859.00 | R67: 1,859.00
A68: 62 | C68: 保险柜（大） | D68: 盾牌 | F68: 个 | G68: 1 | H68: 2014-03-31 | L68: 2,650.00 | M68: 20% | N68: 530.00 | O68: 0.0% | P68: 财务处 | Q68: 2,650.00 | R68: 2,650.00
A69: 63 | C69: 保险柜（小） | D69: 永宝 | F69: 个 | G69: 1 | H69: 2014-03-31 | L69: 899.00 | M69: 20% | N69: 179.80 | O69: 0.0% | P69: 财务处 | Q69: 899.00 | R69: 899.00
A70: 64 | C70: 保险柜（小） | D70: 君宝 | F70: 个 | G70: 1 | H70: 2015-06-30 | L70: 598.00 | M70: 20% | N70: 119.60 | O70: 0.0% | P70: 财务处 | Q70: 598.00 | R70: 598.00
A71: 65 | C71: 复印机（废品） | F71: 台 | G71: 1 | H71: 2010-01-30 | L71: 2,500.00 | N71: 0.00 | O71: 0.0% | P71: 培训中心 | Q71: 2,500.00 | R71: 2,500.00
A72: 66 | C72: 饮水机 | F72: 台 | G72: 1 | H72: 2014-03-31 | L72: 100.00 | M72: 20% | N72: 20.00 | O72: 0.0% | P72: 员工寝室 | Q72: 100.00 | R72: 100.00
A73: 67 | C73: 电脑 | F73: 套 | G73: 1 | H73: 2014-03-31 | L73: 2,300.00 | M73: 30% | N73: 690.00 | O73: 0.0% | P73: 档案室 | Q73: 2,300.00 | R73: 2,300.00
A74: 68 | C74: 保险柜（小） | D74: 五塔 | F74: 个 | G74: 1 | H74: 2014-03-31 | L74: 298.00 | M74: 50% | N74: 149.00 | O74: 0.0% | P74: 档案室 | Q74: 298.00 | R74: 298.00
A75: 69 | C75: 挂式空调（旧） | D75: 华菱 | F75: 台 | G75: 1 | H75: 2010-01-30 | L75: 2,200.00 | M75: 30% | N75: 660.00 | O75: 0.0% | P75: 杂物室 | Q75: 2,200.00 | R75: 2,200.00
A76: 70 | C76: 传真机 | F76: 个 | G76: 1 | H76: 2013-7-31 | L76: 880.00 | M76: 30% | N76: 264.00
A77: 71 | C77: 复印机 | F77: 台 | G77: 4 | H77: 2013-7-31 | L77: 14,800.00 | M77: 30% | N77: 4,440.00
A78: 72 | C78: 投影仪 | F78: 台 | G78: 1 | H78: 2013-7-31 | L78: 2,400.00 | M78: 30% | N78: 720.00
A79: 73 | N79: 0.00 | O79: 0.0% | Q79: 合计 | R79: =SUM(R7:R75) -> 126,761.00
A80: 合 计 | J80: =SUM(J7:J79) -> 0.00 | K80: =SUM(K7:K79) -> 0.00 | L80: =SUM(L7:L79) -> 144,841.00 | N80: =SUM(N7:N79) -> 42,262.75 | O80: 0.0%
A81: 减:电子设备减值准备 | O81: 0.0%
A82: 合 计 | I82: =SUM(I7:I81) -> 0.00 | J82: =J80-J81 -> 0.00 | K82: =K80-K81 -> 0.00 | L82: =L80-L81 -> 144,841.00 | M82: =M80-M81 -> 0% | N82: =N80-N81 -> 42,262.75 | O82: 0.0%
A83: =#REF! ->  | K83: =#REF! -> 
A84: =#REF! -> 

Sheet 固定资产汇总 (hidden)
A2: 固 定 资 产 清 查 评 估 汇 总 表
A4: =#REF! -> 
A6: =#REF! ->  | J6: 金额单位：人民币元
A7: 编号 | B7: 科目名称 | C7: 帐 面 价 值 | E7: 调整后帐面值 | G7: 评估价值 | I7: 增值额 | K7: 增值率%
B8: 科目名称 | C8: 原值 | D8: 净值 | E8: 原值 | F8: 净值 | G8: 原值 | H8: 净值 | I8: 原值 | J8: 净值 | K8: 原值 | L8: 净值
A9: 1 | B9: 房屋建筑物类合计 | C9: =SUM(C10:C14) ->  | I9: =G9-E9 ->  | J9: =H9-F9 ->  | K9: =IF(G9=0," ",IF(I9/G9=0," ",I9/G9)) ->  | L9: =IF(H9=0," ",IF(J9/H9=0," ",J9/H9)) -> 
A10: 2 | B10: 固定资产—房屋建筑物 | C10: =#REF! ->  | D10: =#REF! ->  | E10: =#REF! ->  | F10: =#REF! ->  | G10: =#REF! ->  | H10: =#REF! ->  | I10: =G10-E10 ->  | J10: =H10-F10 ->  | K10: =IF(G10=0," ",IF(I10/G10=0," ",I10/G10)) ->  | L10: =IF(H10=0," ",IF(J10/H10=0," ",J10/H10)) -> 
A11: 3 | B11: 固定资产—构筑物其他 | C11: =#REF! ->  | D11: =#REF! ->  | E11: =#REF! ->  | F11: =#REF! ->  | G11: =#REF! ->  | H11: =#REF! -> 
A12: 4 | B12: 固定资产—管道及沟槽 | C12: =#REF! ->  | D12: =#REF! ->  | E12: =#REF! ->  | F12: =#REF! ->  | G12: =#REF! ->  | H12: =#REF! -> 
I13: 0 | J13: 0
I14: 0 | J14: 0
A15: 5 | B15: 设备类合计 | C15: =SUM(C16:C20) ->  | D15: 3,558,313.16 | G15: 11,502,308.80 | H15: 4,326,215.52
A16: 6 | B16: 固定资产—机器设备 | C16: =机器设备!J443 -> 9,334,677.84 | D16: =机器设备!K443 -> 1,957,661.16 | E16: =机器设备!#REF! ->  | F16: =机器设备!#REF! ->  | G16: =机器设备!L443 -> 11,019,667.80 | H16: =机器设备!N443 -> 4,214,472.77
A17: 7 | B17: 固定资产—车辆 | C17: =车辆!J20 -> 3,305,146.00 | D17: =车辆!K20 -> 1,600,652.00 | E17: =车辆!#REF! ->  | F17: =车辆!#REF! ->  | G17: =车辆!L20 -> 337,800.00 | H17: =车辆!N20 -> 69,480.00
A18: 8 | B18: 固定资产—电子设备 | C18: =电子设备!#REF! ->  | D18: =电子设备!I82 -> 0 | E18: =电子设备!J82 -> 0 | F18: =电子设备!K82 -> 0 | G18: =电子设备!L82 -> 144,841.00 | H18: =电子设备!N82 -> 42,262.75 | I18: 144,841.00 | J18: 42,262.75 | K18: 100.0% | L18: 100.0%
I19: 0 | J19: 0
I20: 0 | J20: 0
A21: 9 | B21: 工程物资 | C21: =#REF! ->  | D21: =#REF! ->  | E21: =#REF! ->  | F21: =#REF! ->  | G21: =#REF! ->  | H21: =#REF! -> 
I22: 0 | J22: 0
I23: 0 | J23: 0
A24: 10 | B24: 在建工程 | C24: =C25+C26 ->  | D24: =D25+D26 ->  | E24: =E25+E26 ->  | F24: =SUM(F25:F28) ->  | G24: =SUM(G25:G28) ->  | H24: =SUM(H25:H28) -> 
A25: 11 | B25: 在建工程—土建工程 | C25: =D25 ->  | D25: =#REF! ->  | E25: =F25 ->  | F25: =#REF! ->  | G25: =H25 ->  | H25: =#REF! -> 
A26: 12 | B26: 在建工程—设备安装工程 | C26: =D26 ->  | D26: =#REF! ->  | E26: =F26 ->  | F26: =#REF! ->  | G26: =H26 ->  | H26: =#REF! -> 
E27: =F27 -> 0 | I27: 0 | J27: 0
E28: =F28 -> 0 | I28: 0 | J28: 0
A29: 13 | B29: 固定资产清理 | D29: =#REF! ->  | E29: =F29 ->  | F29: =#REF! ->  | G29: =H29 ->  | H29: =#REF! -> 
I30: 0 | J30: 0
I31: 0 | J31: 0
A32: 14 | B32: 待处理固定资产净损失 | D32: =#REF! ->  | F32: =#REF! ->  | H32: =#REF! ->  | I32: 0
I33: 0 | J33: 0
I34: 0 | J34: 0
A35: 15 | B35: 固定资产合计 | C35: =C9+C15+C21+C24+C29+C32 ->  | D35: =D9+D15+D21+D24+D29+D32 ->  | E35: =E9+E15 ->  | F35: =F9+F15+F21+F24+F29+F32 ->  | G35: =G9+G15 ->  | H35: =H9+H15+H21+H24+H29+H32 -> 
A37: 资产占有单位填表人： | E37: 移交单位： | H37: 接收单位：
A39: 填表日期： 年 月 日 | E39: 评估人员：

Sheet 流动负债汇总 (hidden)
B2: 流动负债清查评估汇总表
A4: =#REF! -> 
A6: =#REF! ->  | F6: 金额单位：元
A7: 编号 | B7: 科目名称 | C7: 帐 面 价 值 | D7: 调整后帐面值 | E7: 评估价值 | F7: 增值额 | G7: 增值率%
A8: 1 | B8: 短期借款 | C8: =#REF! ->  | D8: =#REF! ->  | E8: =#REF! ->  | F8: =E8-D8 ->  | G8: =IF(D8=0," ",IF(F8/D8=0," ",F8/D8)) -> 
A9: 2 | B9: 应付票据 | C9: =#REF! ->  | D9: =#REF! ->  | E9: =#REF! ->  | F9: =E9-D9 ->  | G9: =IF(D9=0," ",IF(F9/D9=0," ",F9/D9)) -> 
A10: 3 | B10: 应付帐款 | C10: =#REF! ->  | D10: =#REF! ->  | E10: =#REF! -> 
A11: 4 | B11: 预收帐款 | C11: =#REF! ->  | D11: =#REF! ->  | E11: =#REF! -> 
A12: 5 | B12: 代销商品款 | C12: =#REF! ->  | D12: =#REF! ->  | E12: =#REF! -> 
A13: 6 | B13: 其他应付款 | C13: =#REF! ->  | D13: =#REF! ->  | E13: =#REF! -> 
A14: 7 | B14: 应付工资 | C14: =#REF! ->  | D14: =#REF! ->  | E14: =#REF! -> 
A15: 8 | B15: 应付福利费 | C15: =#REF! ->  | D15: =#REF! ->  | E15: =#REF! -> 
A16: 9 | B16: 应交税金 | C16: =#REF! ->  | D16: =#REF! ->  | E16: =#REF! -> 
A17: 10 | B17: 应付利润 | C17: =#REF! ->  | D17: =#REF! ->  | E17: =#REF! -> 
A18: 11 | B18: 其他未交款 | C18: =#REF! ->  | D18: =#REF! ->  | E18: =#REF! -> 
A19: 12 | B19: 预提费用 | C19: =#REF! ->  | D19: =#REF! ->  | E19: =#REF! -> 
A20: 13 | B20: 一年内到期长期负债 | C20: =#REF! ->  | D20: =#REF! ->  | E20: =#REF! -> 
A21: 14 | B21: 其他流动负债 | C21: =#REF! ->  | D21: =#REF! ->  | E21: =#REF! -> 
B23: 流动负债合计 | C23: =SUM(C8:C22) ->  | D23: =SUM(D8:D22) ->  | E23: =SUM(E8:E22) ->  | F23: =SUM(F8:F22) -> 
A25: 资产占有单位填表人： | D25: 移交单位： | F25: 接收单位：
A27: 填表日期： 年 月 日 | D27: 评估人员：

Sheet 长期负债汇总 (hidden)
A2: 长期负债清查评估汇总表
A4: =#REF! -> 
A6: =#REF! ->  | G6: 金额单位：元
A7: 编号 | B7: 科目名称 | C7: 帐 面 价 值 | D7: 调整后帐面值 | E7: 评估价值 | F7: 增值额 | G7: 增值率%
A8: 1 | B8: 长期借款 | C8: =#REF! ->  | D8: =#REF! ->  | E8: =#REF! ->  | F8: =E8-D8 ->  | G8: =IF(D8=0," ",IF(F8/D8=0," ",F8/D8)) -> 
A9: 2 | B9: 应付债券 | C9: =#REF! ->  | D9: =#REF! ->  | E9: =#REF! ->  | F9: =E9-D9 ->  | G9: =IF(D9=0," ",IF(F9/D9=0," ",F9/D9)) -> 
A10: 3 | B10: 长期应付款 | C10: =#REF! ->  | D10: =#REF! ->  | E10: =#REF! -> 
A11: 4 | B11: 住房周转金 | C11: =#REF! ->  | D11: =#REF! ->  | E11: =#REF! -> 
A12: 5 | B12: 其他长期负债 | C12: =#REF! ->  | D12: =#REF! ->  | E12: =#REF! -> 
A13: 6 | B13: 递延税款贷项 | C13: =#REF! ->  | D13: =#REF! ->  | E13: =#REF! -> 
F14: 0
F15: 0
F16: 0
F17: 0
F18: 0
F19: 0
F20: 0
B21: 长期负债合计 | C21: =SUM(C8:C20) ->  | D21: =SUM(D8:D20) ->  | E21: =SUM(E8:E20) ->  | F21: =SUM(F8:F20) -> 
A23: 资产占有单位填表人： | D23: 移交单位： | F23: 接收单位：
A25: 填表日期： 年 月 日 | D25: 评估人员：
